Workbook

Sheet Mundo
AA2: Midway Atoll | AD2: =miAhora -> 2022-03-10T09:42:57
AA3: =IF(miNuevaCiudad="","Introduzca ciudad",Ciudades!G2 & " - " & Ciudades!H2) -> Midway Atoll - United States | AD3: =miAhora -> 44630.40483
AA4: =IF(miNuevaCiudad="","a geolocalizar",Ciudades!G3 & " - " & Ciudades!H3) -> Midway Atoll - United States
AA5: =IF(miNuevaCiudad="","",Ciudades!G4 & " - " & Ciudades!H4) -> -
B6: -11 | C6: -10 | D6: -9 | E6: -8 | F6: -7 | G6: -6 | H6: -5 | I6: -4 | J6: -3 | K6: -2 | L6: -1 | M6: 0 | N6: +1 | O6: +2 | P6: +3 | Q6: +4 | R6: +5 | S6: +6 | T6: +7 | U6: +8 | V6: +9 | W6: +10 | X6: +11 | Y6: +12 | AA6: =IF(miNuevaCiudad="","",Ciudades!G5 & " - " & Ciudades!H5) -> - | AC6: =HYPERLINK("https://" & VLOOKUP(Idiomas!$A$49,TablaIdiomas[],Total_Idiomas,FALSE) & ".wikipedia.org/wiki/" & LEFT(miCiudad,IFERROR(FIND(",",miCiudad)-1,LEN(miCiudad))),VLOOKUP(Idiomas!$A$2,TablaIdiomas[],Total_Idiomas,FALSE)) -> Ciudad | AD6: Zaragoza, Aragon | AF6: =HYPERLINK("https://en.wikipedia.org/wiki/" & LEFT(miCiudad,IFERROR(FIND(",",miCiudad)-1,LEN(miCiudad))),"è") -> è
AA7: =IF(miNuevaCiudad="","",Ciudades!G6 & " - " & Ciudades!H6) -> -
AA8: =IF(miNuevaCiudad="","",Ciudades!G7 & " - " & Ciudades!H7) -> - | AC8: =HYPERLINK("https://" & VLOOKUP(Idiomas!$A$49,TablaIdiomas[],Total_Idiomas,FALSE) & ".wikipedia.org/wiki/" & miPaís,VLOOKUP(Idiomas!$A$3,TablaIdiomas[],Total_Idiomas,FALSE)) -> País | AD8: Spain | AF8: =HYPERLINK("https://en.wikipedia.org/wiki/" & miPaís,"è") -> è
AA9: =IF(miNuevaCiudad="","",Ciudades!G8 & " - " & Ciudades!H8) -> -
AA10: =IF(miNuevaCiudad="","",Ciudades!G9 & " - " & Ciudades!H9) -> - | AC10: =VLOOKUP(Idiomas!$A$25,TablaIdiomas[],Total_Idiomas,FALSE) -> Latitud | AD10: =IF(miReloj>0,ROUND(INDEX(Relojes!$T$3:$T$35,miReloj),2),"") -> 41.65
AA11: =IF(miNuevaCiudad="","",Ciudades!G10 & " - " & Ciudades!H10) -> - | AC11: =VLOOKUP(Idiomas!$A$26,TablaIdiomas[],Total_Idiomas,FALSE) -> Longitud | AD11: =IF(miReloj>0,ROUND(INDEX(Relojes!$U$3:$U$35,miReloj),2),"") -> -0.88
AA12: =IF(miNuevaCiudad="","",Ciudades!G11 & " - " & Ciudades!H11) -> - | AC12: =VLOOKUP(Idiomas!$A$17,TablaIdiomas[],Total_Idiomas,FALSE) -> Fecha | AD12: 2022-03-10
AA13: =IF(miNuevaCiudad="","",Ciudades!G12 & " - " & Ciudades!H12) -> - | AC13: =VLOOKUP(Idiomas!$A$16,TablaIdiomas[],Total_Idiomas,FALSE) -> Hora | AD13: 09:42:57
AA14: =IF(miNuevaCiudad="","",Ciudades!G13 & " - " & Ciudades!H13) -> -
AA15: =IF(miNuevaCiudad="","",Ciudades!G14 & " - " & Ciudades!H14) -> - | AC15: =VLOOKUP(Idiomas!$A$4,TablaIdiomas[],Total_Idiomas,FALSE) -> GMT | AD15: 1
AA16: =IF(miNuevaCiudad="","",Ciudades!G15 & " - " & Ciudades!H15) -> - | AC16: =VLOOKUP(Idiomas!$A$5,TablaIdiomas[],Total_Idiomas,FALSE) -> Reloj Nº | AD16: 13
AA17: =IF(miNuevaCiudad="","",Ciudades!G16 & " - " & Ciudades!H16) -> -
AA18: =IF(miNuevaCiudad="","",Ciudades!G17 & " - " & Ciudades!H17) -> - | AC18: =VLOOKUP(Idiomas!$A$6,TablaIdiomas[],Total_Idiomas,FALSE) -> Idioma | AD18: Español
AA19: =IF(miNuevaCiudad="","",Ciudades!G18 & " - " & Ciudades!H18) -> - | AC19: =VLOOKUP(Idiomas!$A$43,TablaIdiomas[],Total_Idiomas,FALSE) -> Segundos | AD19: 1
AA20: =IF(miNuevaCiudad="","",Ciudades!G19 & " - " & Ciudades!H19) -> - | AC20: =VLOOKUP(Idiomas!$A$48,TablaIdiomas[],Total_Idiomas,FALSE) -> Ratón sobre mapa | AD20: X
AA21: =IF(miNuevaCiudad="","",Ciudades!G20 & " - " & Ciudades!H20) -> - | AC21: =VLOOKUP(Idiomas!$A$50,TablaIdiomas[],Total_Idiomas,FALSE) -> Ver las ciudades | AD21: √
AA22: =IF(miNuevaCiudad="","",Ciudades!G21 & " - " & Ciudades!H21) -> - | AC22: =VLOOKUP(Idiomas!$A$51,TablaIdiomas[],Total_Idiomas,FALSE) -> Ver los relojes | AD22: √
AB25: =VLOOKUP(Idiomas!$A$7,TablaIdiomas[],Total_Idiomas,FALSE) -> RELOJES MUNDIALES Versión 3.6
AB26: =VLOOKUP(Idiomas!$A$11,TablaIdiomas[],Total_Idiomas,FALSE) -> Clic en el reloj grande: Para/Arranca relojes.
AB28: =VLOOKUP(Idiomas!$A$8,TablaIdiomas[],Total_Idiomas,FALSE) -> Autor | AC28: Excelente Mapa con Relojes Mundiales
AB29: Pedro Wave | AC29: Blog: #ExcelPedroWave
AB31: =VLOOKUP(Idiomas!$A$9,TablaIdiomas[],Total_Idiomas,FALSE) -> Gracias a | AC31: How to Make an Analog Clock in Excel
AB32: George Lungu | AC32: Excel Unusual
AB33: Chip Pearson | AC33: Downloading a file from the Web
AC34: Time Zone and Daylight Savings Time
AB35: =VLOOKUP(Idiomas!$A$47,TablaIdiomas[],Total_Idiomas,FALSE) -> Servicios Web
AB36: Earth Viewer | AC36: https://www.fourmilab.ch/earthview/
B37: -11 | C37: -10 | D37: -9 | E37: -8 | F37: -7 | G37: -6 | H37: -5 | I37: -4 | J37: -3 | K37: -2 | L37: -1 | M37: 0 | N37: +1 | O37: +2 | P37: +3 | Q37: +4 | R37: +5 | S37: +6 | T37: +7 | U37: +8 | V37: +9 | W37: +10 | X37: +11 | Y37: +12 | AB37: City Search API | AC37: https://nominatim.openstreetmap.org/ui/search.html
AB38: Time API | AC38: https://www.timeapi.io/swagger/index.html
AB39: Wikipedia | AC39: https://en.wikipedia.org/wiki/Zaragoza
AB41: Copyright | AC41: https://creativecommons.org/licenses/by-nc-sa/3.0/

Sheet Relojes
A1: 44630.40483 | B1: =A1 -> 2022-03-10T09:42:57 | C1: 44630.36316 | D1: =VLOOKUP(Idiomas!$A$19,TablaIdiomas[],Total_Idiomas,FALSE) -> Saeta de las horas: | G1: 0.6 | H1: =VLOOKUP(Idiomas!$A$20,TablaIdiomas[],Total_Idiomas,FALSE) -> Saeta de las minutos: | K1: 0.9 | L1: =VLOOKUP(Idiomas!$A$21,TablaIdiomas[],Total_Idiomas,FALSE) -> Saeta de las segundos: | O1: 1.1 | P1: Loc X | Q1: Loc Y | R1: =VLOOKUP(Idiomas!$A$22,TablaIdiomas[],Total_Idiomas,FALSE) -> Ciudades | S1: =VLOOKUP(Idiomas!$A$23,TablaIdiomas[],Total_Idiomas,FALSE) -> Países | T1: =VLOOKUP(Idiomas!$A$27,TablaIdiomas[],Total_Idiomas,FALSE) -> Latitud decimal | U1: =VLOOKUP(Idiomas!$A$28,TablaIdiomas[],Total_Idiomas,FALSE) -> Longitud decimal | V1: =VLOOKUP(Idiomas!$A$16,TablaIdiomas[],Total_Idiomas,FALSE) -> Hora | W1: =VLOOKUP(Idiomas!$A$29,TablaIdiomas[],Total_Idiomas,FALSE) -> Minuto | X1: =VLOOKUP(Idiomas!$A$22,TablaIdiomas[],Total_Idiomas,FALSE) -> Ciudades
A2: =VLOOKUP(Idiomas!$A$16,TablaIdiomas[],Total_Idiomas,FALSE) -> Hora | B2: =VLOOKUP(Idiomas!$A$17,TablaIdiomas[],Total_Idiomas,FALSE) -> Fecha | C2: =VLOOKUP(Idiomas!$A$18,TablaIdiomas[],Total_Idiomas,FALSE) -> Hora GMT | D2: Pos X | E2: X | F2: Pos Y | G2: Y | H2: Pos X | I2: X | J2: Pos Y | K2: Y | L2: Pos X | M2: X | N2: Pos Y | O2: Y
A3: =$C$1+$C3/24 -> 44629.90483 | B3: =A3 -> 2022-03-09T21:42:57 | C3: -11 | D3: 0 | E3: =$D3+$G$1*INDEX(Tiempos!$C$3:$C$146,$V3) -> -0.564 | F3: 0 | G3: =$F3+$G$1*INDEX(Tiempos!$D$3:$D$146,$V3) -> 0.204 | H3: =$D$3 -> 0 | I3: =$H3+$K$1*INDEX(Tiempos!$H$3:$H$242,$W3) -> -0.873 | J3: =$F$3 -> 0 | K3: =$J3+$K$1*INDEX(Tiempos!$I$3:$I$242,$W3) -> -0.207 | L3: =$D$3 -> 0 | M3: =$L3+$O$1*INDEX(Tiempos!$M$3:$M$62,SECOND($A3)+1) -> -0.341 | N3: =$F$3 -> 0 | O3: =$N3+$O$1*INDEX(Tiempos!$N$3:$N$62,SECOND($A3)+1) -> 1.045 | P3: 10.59543572 | Q3: 199.4664325 | R3: Midway Atoll | S3: USA | T3: 28.2417536 | U3: -177.3754308 | V3: =MATCH(HOUR($A3)*100+MINUTE($A3),Tiempos!$A$3:$A$146) -> 131 | W3: =MATCH(MINUTE($A3)*100+SECOND($A3),Tiempos!$F$3:$F$242) -> 172 | X3: =misCiudadesOrdenadas -> Anchorage, Alaska
A4: =$C$1+$C4/24 -> 44629.94649 | B4: =A4 -> 2022-03-09T22:42:57 | C4: -10 | D4: =$D$3 -> 0 | E4: =$D4+$G$1*INDEX(Tiempos!$C$3:$C$146,$V4) -> -0.384 | F4: =$F$3 -> 0 | G4: =$F4+$G$1*INDEX(Tiempos!$D$3:$D$146,$V4) -> 0.462 | H4: =$D$3 -> 0 | I4: =$H4+$K$1*INDEX(Tiempos!$H$3:$H$242,$W4) -> -0.873 | J4: =$F$3 -> 0 | K4: =$J4+$K$1*INDEX(Tiempos!$I$3:$I$242,$W4) -> -0.207 | L4: =$D$3 -> 0 | M4: =M3 -> -0.341 | N4: =$F$3 -> 0 | O4: =O3 -> 1.045 | P4: 52.21046853 | Q4: 214.4585068 | R4: Honolulu, Honolulu County, Hawaii | S4: USA | T4: 21.304547 | U4: -157.855676 | V4: =MATCH(HOUR($A4)*100+MINUTE($A4),Tiempos!$A$3:$A$146) -> 137 | W4: =MATCH(MINUTE($A4)*100+SECOND($A4),Tiempos!$F$3:$F$242) -> 172 | X4: Bangkok
A5: =$C$1+$C5/24 -> 44629.98816 | B5: =A5 -> 2022-03-09T23:42:57 | C5: -9 | D5: =$D$3 -> 0 | E5: =$D5+$G$1*INDEX(Tiempos!$C$3:$C$146,$V5) -> -0.108 | F5: =$F$3 -> 0 | G5: =$F5+$G$1*INDEX(Tiempos!$D$3:$D$146,$V5) -> 0.588 | H5: =$D$3 -> 0 | I5: =$H5+$K$1*INDEX(Tiempos!$H$3:$H$242,$W5) -> -0.873 | J5: =$F$3 -> 0 | K5: =$J5+$K$1*INDEX(Tiempos!$I$3:$I$242,$W5) -> -0.207 | L5: =$D$3 -> 0 | M5: =M4 -> -0.341 | N5: =$F$3 -> 0 | O5: =O4 -> 1.045 | P5: 70.85420053 | Q5: 128.2921301 | R5: Anchorage, Alaska | S5: USA | T5: 61.1758781 | U5: -149.1107333 | V5: =MATCH(HOUR($A5)*100+MINUTE($A5),Tiempos!$A$3:$A$146) -> 143 | W5: =MATCH(MINUTE($A5)*100+SECOND($A5),Tiempos!$F$3:$F$242) -> 172 | X5: Bogota, Bogota Capital District - Department
A6: 44630.02983 | B6: 2022-03-10T00:42:57 | C6: -8 | D6: 0 | E6: =$D6+$G$1*INDEX(Tiempos!$C$3:$C$146,$V6) -> 0.204 | F6: 0 | G6: =$F6+$G$1*INDEX(Tiempos!$D$3:$D$146,$V6) -> 0.564 | H6: 0 | I6: =$H6+$K$1*INDEX(Tiempos!$H$3:$H$242,$W6) -> -0.873 | J6: 0 | K6: =$J6+$K$1*INDEX(Tiempos!$I$3:$I$242,$W6) -> -0.207 | L6: 0 | M6: -0.341 | N6: 0 | O6: 1.045 | P6: 143.259761 | Q6: 182.3385414 | R6: Las Vegas, Clark County, Nevada | S6: USA | T6: 36.1672559 | U6: -115.148516 | V6: =MATCH(HOUR($A6)*100+MINUTE($A6),Tiempos!$A$3:$A$146) -> 5 | W6: =MATCH(MINUTE($A6)*100+SECOND($A6),Tiempos!$F$3:$F$242) -> 172 | X6: Brisbane, Brisbane City, Queensland
A7: 44630.07149 | B7: 2022-03-10T01:42:57 | C7: -7 | D7: 0 | E7: =$D7+$G$1*INDEX(Tiempos!$C$3:$C$146,$V7) -> 0.456 | F7: 0 | G7: =$F7+$G$1*INDEX(Tiempos!$D$3:$D$146,$V7) -> 0.384 | H7: 0 | I7: =$H7+$K$1*INDEX(Tiempos!$H$3:$H$242,$W7) -> -0.873 | J7: 0 | K7: =$J7+$K$1*INDEX(Tiempos!$I$3:$I$242,$W7) -> -0.207 | L7: 0 | M7: -0.341 | N7: 0 | O7: 1.045 | P7: 144.9037695 | Q7: 125.5297923 | R7: Yellowknife, North Slave Region, Northwest Territories | S7: Canada | T7: 62.4540807 | U7: -114.377385 | V7: =MATCH(HOUR($A7)*100+MINUTE($A7),Tiempos!$A$3:$A$146) -> 11 | W7: =MATCH(MINUTE($A7)*100+SECOND($A7),Tiempos!$F$3:$F$242) -> 172 | X7: Buenos Aires
A8: 44630.11316 | B8: 2022-03-10T02:42:57 | C8: -6 | D8: 0 | E8: =$D8+$G$1*INDEX(Tiempos!$C$3:$C$146,$V8) -> 0.594 | F8: 0 | G8: =$F8+$G$1*INDEX(Tiempos!$D$3:$D$146,$V8) -> 0.102 | H8: 0 | I8: =$H8+$K$1*INDEX(Tiempos!$H$3:$H$242,$W8) -> -0.873 | J8: 0 | K8: =$J8+$K$1*INDEX(Tiempos!$I$3:$I$242,$W8) -> -0.207 | L8: 0 | M8: -0.341 | N8: 0 | O8: 1.045 | P8: 177.3644783 | Q8: 218.7456645 | R8: Mexico City | S8: Mexico | T8: 19.3207722 | U8: -99.15151506 | V8: =MATCH(HOUR($A8)*100+MINUTE($A8),Tiempos!$A$3:$A$146) -> 17 | W8: =MATCH(MINUTE($A8)*100+SECOND($A8),Tiempos!$F$3:$F$242) -> 172 | X8: Cairo
A9: 44630.15483 | B9: 2022-03-10T03:42:57 | C9: -5 | D9: 0 | E9: =$D9+$G$1*INDEX(Tiempos!$C$3:$C$146,$V9) -> 0.564 | F9: 0 | G9: =$F9+$G$1*INDEX(Tiempos!$D$3:$D$146,$V9) -> -0.204 | H9: 0 | I9: =$H9+$K$1*INDEX(Tiempos!$H$3:$H$242,$W9) -> -0.873 | J9: 0 | K9: =$J9+$K$1*INDEX(Tiempos!$I$3:$I$242,$W9) -> -0.207 | L9: 0 | M9: -0.341 | N9: 0 | O9: 1.045 | P9: 230.973287 | Q9: 172.5152709 | R9: New York | S9: USA | T9: 40.7127281 | U9: -74.0060152 | V9: =MATCH(HOUR($A9)*100+MINUTE($A9),Tiempos!$A$3:$A$146) -> 23 | W9: =MATCH(MINUTE($A9)*100+SECOND($A9),Tiempos!$F$3:$F$242) -> 172 | X9: Denver, Colorado
A10: 44630.19649 | B10: 2022-03-10T04:42:57 | C10: -4 | D10: 0 | E10: =$D10+$G$1*INDEX(Tiempos!$C$3:$C$146,$V10) -> 0.39 | F10: 0 | G10: =$F10+$G$1*INDEX(Tiempos!$D$3:$D$146,$V10) -> -0.456 | H10: 0 | I10: =$H10+$K$1*INDEX(Tiempos!$H$3:$H$242,$W10) -> -0.873 | J10: 0 | K10: =$J10+$K$1*INDEX(Tiempos!$I$3:$I$242,$W10) -> -0.207 | L10: 0 | M10: -0.341 | N10: 0 | O10: 1.045 | P10: 239.826924 | Q10: 220.3814482 | R10: Santo Domingo | S10: Dominican Republic | T10: 18.5638543 | U10: -69.8531692 | V10: =MATCH(HOUR($A10)*100+MINUTE($A10),Tiempos!$A$3:$A$146) -> 29 | W10: =MATCH(MINUTE($A10)*100+SECOND($A10),Tiempos!$F$3:$F$242) -> 172 | X10: Dubai
A11: 44630.23816 | B11: 2022-03-10T05:42:57 | C11: -3 | D11: 0 | E11: =$D11+$G$1*INDEX(Tiempos!$C$3:$C$146,$V11) -> 0.102 | F11: 0 | G11: =$F11+$G$1*INDEX(Tiempos!$D$3:$D$146,$V11) -> -0.594 | H11: 0 | I11: =$H11+$K$1*INDEX(Tiempos!$H$3:$H$242,$W11) -> -0.873 | J11: 0 | K11: =$J11+$K$1*INDEX(Tiempos!$I$3:$I$242,$W11) -> -0.207 | L11: 0 | M11: -0.341 | N11: 0 | O11: 1.045 | P11: 260.5520191 | Q11: 340.7849328 | R11: Buenos Aires | S11: Argentina | T11: -37.14984035 | U11: -60.13195196 | V11: =MATCH(HOUR($A11)*100+MINUTE($A11),Tiempos!$A$3:$A$146) -> 35 | W11: =MATCH(MINUTE($A11)*100+SECOND($A11),Tiempos!$F$3:$F$242) -> 172 | X11: Hong Kong
A12: 44630.27983 | B12: 2022-03-10T06:42:57 | C12: -2 | D12: 0 | E12: =$D12+$G$1*INDEX(Tiempos!$C$3:$C$146,$V12) -> -0.204 | F12: 0 | G12: =$F12+$G$1*INDEX(Tiempos!$D$3:$D$146,$V12) -> -0.564 | H12: 0 | I12: =$H12+$K$1*INDEX(Tiempos!$H$3:$H$242,$W12) -> -0.873 | J12: 0 | K12: =$J12+$K$1*INDEX(Tiempos!$I$3:$I$242,$W12) -> -0.207 | L12: 0 | M12: -0.341 | N12: 0 | O12: 1.045 | P12: 310.9454646 | Q12: 377.8127723 | R12: King Edward Point, South Georgia, SIQQ 1ZZ | S12: South Georgia and the South Sandwich Islands | T12: -54.283545 | U12: -36.4946355 | V12: =MATCH(HOUR($A12)*100+MINUTE($A12),Tiempos!$A$3:$A$146) -> 41 | W12: =MATCH(MINUTE($A12)*100+SECOND($A12),Tiempos!$F$3:$F$242) -> 172 | X12: Honolulu, Honolulu County, Hawaii
A13: 44630.32149 | B13: 2022-03-10T07:42:57 | C13: -1 | D13: 0 | E13: =$D13+$G$1*INDEX(Tiempos!$C$3:$C$146,$V13) -> -0.456 | F13: 0 | G13: =$F13+$G$1*INDEX(Tiempos!$D$3:$D$146,$V13) -> -0.39 | H13: 0 | I13: =$H13+$K$1*INDEX(Tiempos!$H$3:$H$242,$W13) -> -0.873 | J13: 0 | K13: =$J13+$K$1*INDEX(Tiempos!$I$3:$I$242,$W13) -> -0.207 | L13: 0 | M13: -0.341 | N13: 0 | O13: 1.045 | P13: 334.0264787 | Q13: 178.940889 | R13: Ponta Delgada, Azores | S13: Portugal | T13: 37.7394344 | U13: -25.6683618 | V13: =MATCH(HOUR($A13)*100+MINUTE($A13),Tiempos!$A$3:$A$146) -> 47 | W13: =MATCH(MINUTE($A13)*100+SECOND($A13),Tiempos!$F$3:$F$242) -> 172 | X13: Karachi, Karāchi District, Sindh
A14: 44630.36316 | B14: 2022-03-10T08:42:57 | C14: 0 | D14: 0 | E14: =$D14+$G$1*INDEX(Tiempos!$C$3:$C$146,$V14) -> -0.594 | F14: 0 | G14: =$F14+$G$1*INDEX(Tiempos!$D$3:$D$146,$V14) -> -0.102 | H14: 0 | I14: =$H14+$K$1*INDEX(Tiempos!$H$3:$H$242,$W14) -> -0.873 | J14: 0 | K14: =$J14+$K$1*INDEX(Tiempos!$I$3:$I$242,$W14) -> -0.207 | L14: 0 | M14: -0.341 | N14: 0 | O14: 1.045 | P14: 369.2388113 | Q14: 176.7697981 | R14: Lisbon | S14: Portugal | T14: 38.7440523 | U14: -9.151827932 | V14: =MATCH(HOUR($A14)*100+MINUTE($A14),Tiempos!$A$3:$A$146) -> 53 | W14: =MATCH(MINUTE($A14)*100+SECOND($A14),Tiempos!$F$3:$F$242) -> 172 | X14: Kathmandu, Bagmati Pradesh
A15: 44630.40483 | B15: 2022-03-10T09:42:57 | C15: 1 | D15: 0 | E15: =$D15+$G$1*INDEX(Tiempos!$C$3:$C$146,$V15) -> -0.564 | F15: 0 | G15: =$F15+$G$1*INDEX(Tiempos!$D$3:$D$146,$V15) -> 0.204 | H15: 0 | I15: =$H15+$K$1*INDEX(Tiempos!$H$3:$H$242,$W15) -> -0.873 | J15: 0 | K15: =$J15+$K$1*INDEX(Tiempos!$I$3:$I$242,$W15) -> -0.207 | L15: 0 | M15: -0.341 | N15: 0 | O15: 1.045 | P15: 386.8718789 | Q15: 170.48511 | R15: Zaragoza, Aragon | S15: Spain | T15: 41.6521342 | U15: -0.8809428 | V15: =MATCH(HOUR($A15)*100+MINUTE($A15),Tiempos!$A$3:$A$146) -> 59 | W15: =MATCH(MINUTE($A15)*100+SECOND($A15),Tiempos!$F$3:$F$242) -> 172 | X15: King Edward Point, South Georgia, SIQQ 1ZZ
A16: 44630.44649 | B16: 2022-03-10T10:42:57 | C16: 2 | D16: 0 | E16: =$D16+$G$1*INDEX(Tiempos!$C$3:$C$146,$V16) -> -0.384 | F16: 0 | G16: =$F16+$G$1*INDEX(Tiempos!$D$3:$D$146,$V16) -> 0.462 | H16: 0 | I16: =$H16+$K$1*INDEX(Tiempos!$H$3:$H$242,$W16) -> -0.873 | J16: 0 | K16: =$J16+$K$1*INDEX(Tiempos!$I$3:$I$242,$W16) -> -0.207 | L16: 0 | M16: -0.341 | N16: 0 | O16: 1.045 | P16: 456.0413518 | Q16: 195.5905798 | R16: Cairo | S16: Egypt | T16: 30.0352073 | U16: 31.56337024 | V16: =MATCH(HOUR($A16)*100+MINUTE($A16),Tiempos!$A$3:$A$146) -> 65 | W16: =MATCH(MINUTE($A16)*100+SECOND($A16),Tiempos!$F$3:$F$242) -> 172 | X16: Las Vegas, Clark County, Nevada
A17: 44630.48816 | B17: 2022-03-10T11:42:57 | C17: 3 | D17: 0 | E17: =$D17+$G$1*INDEX(Tiempos!$C$3:$C$146,$V17) -> -0.102 | F17: 0 | G17: =$F17+$G$1*INDEX(Tiempos!$D$3:$D$146,$V17) -> 0.594 | H17: 0 | I17: =$H17+$K$1*INDEX(Tiempos!$H$3:$H$242,$W17) -> -0.873 | J17: 0 | K17: =$J17+$K$1*INDEX(Tiempos!$I$3:$I$242,$W17) -> -0.207 | L17: 0 | M17: -0.341 | N17: 0 | O17: 1.045 | P17: 468.948408 | Q17: 140.0170915 | R17: Moscow, Central Federal District | S17: Russia | T17: 55.7504461 | U17: 37.6174943 | V17: =MATCH(HOUR($A17)*100+MINUTE($A17),Tiempos!$A$3:$A$146) -> 71 | W17: =MATCH(MINUTE($A17)*100+SECOND($A17),Tiempos!$F$3:$F$242) -> 172 | X17: Lima
A18: 44630.52983 | B18: 2022-03-10T12:42:57 | C18: 4 | D18: 0 | E18: =$D18+$G$1*INDEX(Tiempos!$C$3:$C$146,$V18) -> 0.204 | F18: 0 | G18: =$F18+$G$1*INDEX(Tiempos!$D$3:$D$146,$V18) -> 0.564 | H18: 0 | I18: =$H18+$K$1*INDEX(Tiempos!$H$3:$H$242,$W18) -> -0.873 | J18: 0 | K18: =$J18+$K$1*INDEX(Tiempos!$I$3:$I$242,$W18) -> -0.207 | L18: 0 | M18: -0.341 | N18: 0 | O18: 1.045 | P18: 506.4088984 | Q18: 206.3116898 | R18: Dubai | S18: United Arab Emirates | T18: 25.07428235 | U18: 55.18853865 | V18: =MATCH(HOUR($A18)*100+MINUTE($A18),Tiempos!$A$3:$A$146) -> 77 | W18: =MATCH(MINUTE($A18)*100+SECOND($A18),Tiempos!$F$3:$F$242) -> 172 | X18: Lisbon
A19: 44630.57149 | B19: 2022-03-10T13:42:57 | C19: 5 | D19: 0 | E19: =$D19+$G$1*INDEX(Tiempos!$C$3:$C$146,$V19) -> 0.462 | F19: 0 | G19: =$F19+$G$1*INDEX(Tiempos!$D$3:$D$146,$V19) -> 0.384 | H19: 0 | I19: =$H19+$K$1*INDEX(Tiempos!$H$3:$H$242,$W19) -> -0.873 | J19: 0 | K19: =$J19+$K$1*INDEX(Tiempos!$I$3:$I$242,$W19) -> -0.207 | L19: 0 | M19: -0.341 | N19: 0 | O19: 1.045 | P19: 532.0831379 | Q19: 206.3467012 | R19: Karachi, Karāchi District, Sindh | S19: Pakistan | T19: 25.0580817 | U19: 67.23117871 | V19: =MATCH(HOUR($A19)*100+MINUTE($A19),Tiempos!$A$3:$A$146) -> 83 | W19: =MATCH(MINUTE($A19)*100+SECOND($A19),Tiempos!$F$3:$F$242) -> 172 | X19: Majuro
A20: 44630.61316 | B20: 2022-03-10T14:42:57 | C20: 6 | D20: 0 | E20: =$D20+$G$1*INDEX(Tiempos!$C$3:$C$146,$V20) -> 0.588 | F20: 0 | G20: =$F20+$G$1*INDEX(Tiempos!$D$3:$D$146,$V20) -> 0.102 | H20: 0 | I20: =$H20+$K$1*INDEX(Tiempos!$H$3:$H$242,$W20) -> -0.873 | J20: 0 | K20: =$J20+$K$1*INDEX(Tiempos!$I$3:$I$242,$W20) -> -0.207 | L20: 0 | M20: -0.341 | N20: 0 | O20: 1.045 | P20: 545.1804055 | Q20: 141.6756133 | R20: Omsk, Omsk Oblast, Siberian Federal District | S20: Russia | T20: 54.9830067 | U20: 73.37452244 | V20: =MATCH(HOUR($A20)*100+MINUTE($A20),Tiempos!$A$3:$A$146) -> 89 | W20: =MATCH(MINUTE($A20)*100+SECOND($A20),Tiempos!$F$3:$F$242) -> 172 | X20: Mexico City
A21: 44630.65483 | B21: 2022-03-10T15:42:57 | C21: 7 | D21: 0 | E21: =$D21+$G$1*INDEX(Tiempos!$C$3:$C$146,$V21) -> 0.564 | F21: 0 | G21: =$F21+$G$1*INDEX(Tiempos!$D$3:$D$146,$V21) -> -0.204 | H21: 0 | I21: =$H21+$K$1*INDEX(Tiempos!$H$3:$H$242,$W21) -> -0.873 | J21: 0 | K21: =$J21+$K$1*INDEX(Tiempos!$I$3:$I$242,$W21) -> -0.207 | L21: 0 | M21: -0.341 | N21: 0 | O21: 1.045 | P21: 603.2714654 | Q21: 230.6235474 | R21: Bangkok | S21: Thailand | T21: 13.8245796 | U21: 100.6224463 | V21: =MATCH(HOUR($A21)*100+MINUTE($A21),Tiempos!$A$3:$A$146) -> 95 | W21: =MATCH(MINUTE($A21)*100+SECOND($A21),Tiempos!$F$3:$F$242) -> 172 | X21: Midway Atoll
A22: 44630.69649 | B22: 2022-03-10T16:42:57 | C22: 8 | D22: 0 | E22: =$D22+$G$1*INDEX(Tiempos!$C$3:$C$146,$V22) -> 0.384 | F22: 0 | G22: =$F22+$G$1*INDEX(Tiempos!$D$3:$D$146,$V22) -> -0.462 | H22: 0 | I22: =$H22+$K$1*INDEX(Tiempos!$H$3:$H$242,$W22) -> -0.873 | J22: 0 | K22: =$J22+$K$1*INDEX(Tiempos!$I$3:$I$242,$W22) -> -0.207 | L22: 0 | M22: -0.341 | N22: 0 | O22: 1.045 | P22: 632.1858975 | Q22: 212.1978117 | R22: Hong Kong | S22: China | T22: 22.350627 | U22: 114.1849161 | V22: =MATCH(HOUR($A22)*100+MINUTE($A22),Tiempos!$A$3:$A$146) -> 101 | W22: =MATCH(MINUTE($A22)*100+SECOND($A22),Tiempos!$F$3:$F$242) -> 172 | X22: Moscow, Central Federal District
A23: 44630.73816 | B23: 2022-03-10T17:42:57 | C23: 9 | D23: 0 | E23: =$D23+$G$1*INDEX(Tiempos!$C$3:$C$146,$V23) -> 0.102 | F23: 0 | G23: =$F23+$G$1*INDEX(Tiempos!$D$3:$D$146,$V23) -> -0.588 | H23: 0 | I23: =$H23+$K$1*INDEX(Tiempos!$H$3:$H$242,$W23) -> -0.873 | J23: 0 | K23: =$J23+$K$1*INDEX(Tiempos!$I$3:$I$242,$W23) -> -0.207 | L23: 0 | M23: -0.341 | N23: 0 | O23: 1.045 | P23: 686.7093934 | Q23: 183.3854208 | R23: Tokyo | S23: Japan | T23: 35.6828387 | U23: 139.7594549 | V23: =MATCH(HOUR($A23)*100+MINUTE($A23),Tiempos!$A$3:$A$146) -> 107 | W23: =MATCH(MINUTE($A23)*100+SECOND($A23),Tiempos!$F$3:$F$242) -> 172 | X23: New York
A24: 44630.77983 | B24: 2022-03-10T18:42:57 | C24: 10 | D24: 0 | E24: =$D24+$G$1*INDEX(Tiempos!$C$3:$C$146,$V24) -> -0.204 | F24: 0 | G24: =$F24+$G$1*INDEX(Tiempos!$D$3:$D$146,$V24) -> -0.564 | H24: 0 | I24: =$H24+$K$1*INDEX(Tiempos!$H$3:$H$242,$W24) -> -0.873 | J24: 0 | K24: =$J24+$K$1*INDEX(Tiempos!$I$3:$I$242,$W24) -> -0.207 | L24: 0 | M24: -0.341 | N24: 0 | O24: 1.045 | P24: 714.9875988 | Q24: 319.8634924 | R24: Brisbane, Brisbane City, Queensland | S24: Australia | T24: -27.4689682 | U24: 153.0234991 | V24: =MATCH(HOUR($A24)*100+MINUTE($A24),Tiempos!$A$3:$A$146) -> 113 | W24: =MATCH(MINUTE($A24)*100+SECOND($A24),Tiempos!$F$3:$F$242) -> 172 | X24: Omsk, Omsk Oblast, Siberian Federal District
A25: 44630.82149 | B25: 2022-03-10T19:42:57 | C25: 11 | D25: 0 | E25: =$D25+$G$1*INDEX(Tiempos!$C$3:$C$146,$V25) -> -0.462 | F25: 0 | G25: =$F25+$G$1*INDEX(Tiempos!$D$3:$D$146,$V25) -> -0.384 | H25: 0 | I25: =$H25+$K$1*INDEX(Tiempos!$H$3:$H$242,$W25) -> -0.873 | J25: 0 | K25: =$J25+$K$1*INDEX(Tiempos!$I$3:$I$242,$W25) -> -0.207 | L25: 0 | M25: -0.341 | N25: 0 | O25: 1.045 | P25: 747.5882639 | Q25: 298.8413467 | R25: Port Vila, Shefa Province, PMB 9054 | S25: Vanuatu | T25: -17.7414972 | U25: 168.3150163 | V25: =MATCH(HOUR($A25)*100+MINUTE($A25),Tiempos!$A$3:$A$146) -> 119 | W25: =MATCH(MINUTE($A25)*100+SECOND($A25),Tiempos!$F$3:$F$242) -> 172 | X25: Ponta Delgada, Azores
A26: 44630.86316 | B26: 2022-03-10T20:42:57 | C26: 12 | D26: 0 | E26: =$D26+$G$1*INDEX(Tiempos!$C$3:$C$146,$V26) -> -0.588 | F26: 0 | G26: =$F26+$G$1*INDEX(Tiempos!$D$3:$D$146,$V26) -> -0.102 | H26: 0 | I26: =$H26+$K$1*INDEX(Tiempos!$H$3:$H$242,$W26) -> -0.873 | J26: 0 | K26: =$J26+$K$1*INDEX(Tiempos!$I$3:$I$242,$W26) -> -0.207 | L26: 0 | M26: -0.341 | N26: 0 | O26: 1.045 | P26: 754.1261255 | Q26: 245.1755775 | R26: Majuro | S26: Marshall Islands | T26: 7.0909924 | U26: 171.3816354 | V26: =MATCH(HOUR($A26)*100+MINUTE($A26),Tiempos!$A$3:$A$146) -> 125 | W26: =MATCH(MINUTE($A26)*100+SECOND($A26),Tiempos!$F$3:$F$242) -> 172 | X26: Port Vila, Shefa Province, PMB 9054
A27: 44630.07149 | B27: 2022-03-10T01:42:57 | C27: -7 | D27: 0 | E27: =$D27+$G$1*INDEX(Tiempos!$C$3:$C$146,$V27) -> 0.456 | F27: 0 | G27: =$F27+$G$1*INDEX(Tiempos!$D$3:$D$146,$V27) -> 0.384 | H27: 0 | I27: =$H27+$K$1*INDEX(Tiempos!$H$3:$H$242,$W27) -> -0.873 | J27: 0 | K27: =$J27+$K$1*INDEX(Tiempos!$I$3:$I$242,$W27) -> -0.207 | L27: 0 | M27: -0.341 | N27: 0 | O27: 1.045 | P27: 164.9281061 | Q27: 174.6190947 | R27: Denver, Colorado | S27: USA | T27: 39.7392364 | U27: -104.9848623 | V27: =MATCH(HOUR($A27)*100+MINUTE($A27),Tiempos!$A$3:$A$146) -> 11 | W27: =MATCH(MINUTE($A27)*100+SECOND($A27),Tiempos!$F$3:$F$242) -> 172 | X27: Santiago, Provincia de Santiago Metropolitan Region
A28: 44630.11316 | B28: 2022-03-10T02:42:57 | C28: -6 | D28: 0 | E28: =$D28+$G$1*INDEX(Tiempos!$C$3:$C$146,$V28) -> 0.594 | F28: 0 | G28: =$F28+$G$1*INDEX(Tiempos!$D$3:$D$146,$V28) -> 0.102 | H28: 0 | I28: =$H28+$K$1*INDEX(Tiempos!$H$3:$H$242,$W28) -> -0.873 | J28: 0 | K28: =$J28+$K$1*INDEX(Tiempos!$I$3:$I$242,$W28) -> -0.207 | L28: 0 | M28: -0.341 | N28: 0 | O28: 1.045 | P28: 202.8295553 | Q28: 230.0845469 | R28: Tegucigalpa, Francisco Morazán | S28: Honduras | T28: 14.0739886 | U28: -87.20698383 | V28: =MATCH(HOUR($A28)*100+MINUTE($A28),Tiempos!$A$3:$A$146) -> 17 | W28: =MATCH(MINUTE($A28)*100+SECOND($A28),Tiempos!$F$3:$F$242) -> 172 | X28: Santo Domingo
A29: 44630.02983 | B29: 2022-03-10T00:42:57 | C29: -8 | D29: 0 | E29: =$D29+$G$1*INDEX(Tiempos!$C$3:$C$146,$V29) -> 0.204 | F29: 0 | G29: =$F29+$G$1*INDEX(Tiempos!$D$3:$D$146,$V29) -> 0.564 | H29: 0 | I29: =$H29+$K$1*INDEX(Tiempos!$H$3:$H$242,$W29) -> -0.873 | J29: 0 | K29: =$J29+$K$1*INDEX(Tiempos!$I$3:$I$242,$W29) -> -0.207 | L29: 0 | M29: -0.341 | N29: 0 | O29: 1.045 | P29: 139.3878387 | Q29: 190.2616871 | R29: Tijuana, Municipio de Baja California, 22105 | S29: Mexico | T29: 32.5010188 | U29: -116.964662 | V29: =MATCH(HOUR($A29)*100+MINUTE($A29),Tiempos!$A$3:$A$146) -> 5 | W29: =MATCH(MINUTE($A29)*100+SECOND($A29),Tiempos!$F$3:$F$242) -> 172 | X29: Stockholm, Solna kommun, Stockholm County
A30: 44630.15483 | B30: 2022-03-10T03:42:57 | C30: -5 | D30: 0 | E30: =$D30+$G$1*INDEX(Tiempos!$C$3:$C$146,$V30) -> 0.564 | F30: 0 | G30: =$F30+$G$1*INDEX(Tiempos!$D$3:$D$146,$V30) -> -0.204 | H30: 0 | I30: =$H30+$K$1*INDEX(Tiempos!$H$3:$H$242,$W30) -> -0.873 | J30: 0 | K30: =$J30+$K$1*INDEX(Tiempos!$I$3:$I$242,$W30) -> -0.207 | L30: 0 | M30: -0.341 | N30: 0 | O30: 1.045 | P30: 226.1144946 | Q30: 286.8657918 | R30: Lima | S30: Peru | T30: -12.2001093 | U30: -76.2850579 | V30: =MATCH(HOUR($A30)*100+MINUTE($A30),Tiempos!$A$3:$A$146) -> 23 | W30: =MATCH(MINUTE($A30)*100+SECOND($A30),Tiempos!$F$3:$F$242) -> 172 | X30: Tegucigalpa, Francisco Morazán
A31: 44630.15483 | B31: 2022-03-10T03:42:57 | C31: -5 | D31: 0 | E31: =$D31+$G$1*INDEX(Tiempos!$C$3:$C$146,$V31) -> 0.564 | F31: 0 | G31: =$F31+$G$1*INDEX(Tiempos!$D$3:$D$146,$V31) -> -0.204 | H31: 0 | I31: =$H31+$K$1*INDEX(Tiempos!$H$3:$H$242,$W31) -> -0.873 | J31: 0 | K31: =$J31+$K$1*INDEX(Tiempos!$I$3:$I$242,$W31) -> -0.207 | L31: 0 | M31: -0.341 | N31: 0 | O31: 1.045 | P31: 230.8077697 | Q31: 250.4436312 | R31: Bogota, Bogota Capital District - Department | S31: Colombia | T31: 4.6533326 | U31: -74.083652 | V31: =MATCH(HOUR($A31)*100+MINUTE($A31),Tiempos!$A$3:$A$146) -> 23 | W31: =MATCH(MINUTE($A31)*100+SECOND($A31),Tiempos!$F$3:$F$242) -> 172 | X31: Tijuana, Municipio de Baja California, 22105
A32: 44630.23816 | B32: 2022-03-10T05:42:57 | C32: -3 | D32: 0 | E32: =$D32+$G$1*INDEX(Tiempos!$C$3:$C$146,$V32) -> 0.102 | F32: 0 | G32: =$F32+$G$1*INDEX(Tiempos!$D$3:$D$146,$V32) -> -0.594 | H32: 0 | I32: =$H32+$K$1*INDEX(Tiempos!$H$3:$H$242,$W32) -> -0.873 | J32: 0 | K32: =$J32+$K$1*INDEX(Tiempos!$I$3:$I$242,$W32) -> -0.207 | L32: 0 | M32: -0.341 | N32: 0 | O32: 1.045 | P32: 238.1188169 | Q32: 332.7935958 | R32: Santiago, Provincia de Santiago Metropolitan Region | S32: Chile | T32: -33.45204945 | U32: -70.65436601 | V32: =MATCH(HOUR($A32)*100+MINUTE($A32),Tiempos!$A$3:$A$146) -> 35 | W32: =MATCH(MINUTE($A32)*100+SECOND($A32),Tiempos!$F$3:$F$242) -> 172 | X32: Tokyo
A33: 44630.40483 | B33: 2022-03-10T09:42:57 | C33: 1 | D33: 0 | E33: =$D33+$G$1*INDEX(Tiempos!$C$3:$C$146,$V33) -> -0.564 | F33: 0 | G33: =$F33+$G$1*INDEX(Tiempos!$D$3:$D$146,$V33) -> 0.204 | H33: 0 | I33: =$H33+$K$1*INDEX(Tiempos!$H$3:$H$242,$W33) -> -0.873 | J33: 0 | K33: =$J33+$K$1*INDEX(Tiempos!$I$3:$I$242,$W33) -> -0.207 | L33: 0 | M33: -0.341 | N33: 0 | O33: 1.045 | P33: 427.2765674 | Q33: 132.2918301 | R33: Stockholm, Solna kommun, Stockholm County | S33: Sweden | T33: 59.3251172 | U33: 18.0710935 | V33: =MATCH(HOUR($A33)*100+MINUTE($A33),Tiempos!$A$3:$A$146) -> 59 | W33: =MATCH(MINUTE($A33)*100+SECOND($A33),Tiempos!$F$3:$F$242) -> 172 | X33: Visakhapatnam, Andhra Pradesh
A34: 44630.59233 | B34: 2022-03-10T14:12:57 | C34: 5.5 | D34: 0 | E34: =$D34+$G$1*INDEX(Tiempos!$C$3:$C$146,$V34) -> 0.546 | F34: 0 | G34: =$F34+$G$1*INDEX(Tiempos!$D$3:$D$146,$V34) -> 0.252 | H34: 0 | I34: =$H34+$K$1*INDEX(Tiempos!$H$3:$H$242,$W34) -> 0.873 | J34: 0 | K34: =$J34+$K$1*INDEX(Tiempos!$I$3:$I$242,$W34) -> 0.207 | L34: 0 | M34: -0.341 | N34: 0 | O34: 1.045 | P34: 564.7723303 | Q34: 221.8174716 | R34: Visakhapatnam, Andhra Pradesh | S34: India | T34: 17.89937045 | U34: 82.56422006 | V34: =MATCH(HOUR($A34)*100+MINUTE($A34),Tiempos!$A$3:$A$146) -> 86 | W34: =MATCH(MINUTE($A34)*100+SECOND($A34),Tiempos!$F$3:$F$242) -> 52 | X34: Yellowknife, North Slave Region, Northwest Territories
A35: 44630.60274 | B35: 2022-03-10T14:27:57 | C35: 5.75 | D35: 0 | E35: =$D35+$G$1*INDEX(Tiempos!$C$3:$C$146,$V35) -> 0.564 | F35: 0 | G35: =$F35+$G$1*INDEX(Tiempos!$D$3:$D$146,$V35) -> 0.21 | H35: 0 | I35: =$H35+$K$1*INDEX(Tiempos!$H$3:$H$242,$W35) -> 0.207 | J35: 0 | K35: =$J35+$K$1*INDEX(Tiempos!$I$3:$I$242,$W35) -> -0.873 | L35: 0 | M35: -0.341 | N35: 0 | O35: 1.045 | P35: 570.6575902 | Q35: 200.6161585 | R35: Kathmandu, Bagmati Pradesh | S35: Nepal | T35: 27.7097467 | U35: 85.32473286 | V35: =MATCH(HOUR($A35)*100+MINUTE($A35),Tiempos!$A$3:$A$146) -> 87 | W35: =MATCH(MINUTE($A35)*100+SECOND($A35),Tiempos!$F$3:$F$242) -> 112 | X35: Zaragoza, Aragon
A36: =miAhora -> 44630.40483 | B36: =miAhora -> 2022-03-10T09:42:57 | C36: =(A36-$C$1)*24 -> 1 | D36: 0 | E36: =$D36+$G$1*INDEX(Tiempos!$C$3:$C$146,$V36) -> -0.564 | F36: 0 | G36: =$F36+$G$1*INDEX(Tiempos!$D$3:$D$146,$V36) -> 0.204 | H36: 0 | I36: =$H36+$K$1*INDEX(Tiempos!$H$3:$H$242,$W36) -> -0.873 | J36: 0 | K36: =$J36+$K$1*INDEX(Tiempos!$I$3:$I$242,$W36) -> -0.207 | L36: 0 | M36: -0.341 | N36: 0 | O36: 1.045 | P36: 570.6575902 | V36: =MATCH(HOUR($A36)*100+MINUTE($A36),Tiempos!$A$3:$A$146) -> 59 | W36: =MATCH(MINUTE($A36)*100+SECOND($A36),Tiempos!$F$3:$F$242) -> 172

Sheet Ciudades
A1: <?xml version="1.0" encoding="UTF-8" ?> <searchresults timestamp='Fri, 25 Feb 22 08:42:02 +0000' attribution='Data © OpenStreetMap contributors, ODbL 1.0. http://www.openstreetmap.org/copyright' querystring='Midway Atoll' exclude_place_ids='3911214,285377706' more_url='https://nominatim.openstreetmap.org/search/?q=Midway+Atoll&amp;exclude_place_ids=3911214%2C285377706&amp;format=xml&amp;accept-language=es-ES%2Ces%3Bq%3D0.5'> <place place_id='3911214' osm_type='node' osm_id='522248134' place_rank='17' address_rank='0' boundingbox="27.9217536,28.5617536,-177.6954308,-177.0554308" lat='28.2417536' lon='-177.3754308' display_name='Midway Atoll, United States' class='place' type='island' importance='0.525'/><place place_id='285377706' osm_type='relation' osm_id='8161698' place_rank='25' address_rank='0' boundingbox="27.9911406,28.4801332,-177.6505562,-177.0875122" lat='28.23605105' lon='-177.36856316535344' display_name='Midway Atoll, United States' class='boundary' type='region' importance='0.325'/></searchresults> | B1: lat= | C1: =IFERROR(FIND(B1,A1),"") -> 586 | D1: =IFERROR(LEFT(A2,FIND(MiAcento,A2)-1),"") -> 28.2417536 | E1: ' | F1: Nombre Aux | G1: Región | H1: País | I1: Lat | J1: Long | K1: Aux
A2: =IFERROR(MID(A1,C1+LEN(B1)+1,LEN(A1)-C1-LEN(B1)),"") -> 28.2417536' lon='-177.3754308' display_name='Midway Atoll, United States' class='place' type='island' importance='0.525'/><place place_id='285377706' osm_type='relation' osm_id='8161698' place_rank='25' address_rank='0' boundingbox="27.9911406,28.4801332,-177.6505562,-177.0875122" lat='28.23605105' lon='-177.36856316535344' display_name='Midway Atoll, United States' class='boundary' type='region' importance='0.325'/></searchresults> | B2: lon= | C2: =IFERROR(FIND(B2,A2),"") -> 13 | D2: =IFERROR(LEFT(A3,FIND(MiAcento,A3)-1),"") -> -177.3754308 | F2: =IFERROR(SUBSTITUTE(SUBSTITUTE(D3,", ","|",LEN(D3)-LEN(SUBSTITUTE(D3,",",""))),miNuevaCiudad&", ",""),miNuevaCiudad) -> Midway Atoll|United States | G2: =IFERROR(MID(TablaCiudades[[#This Row],[Aux]],FIND("¡",TablaCiudades[[#This Row],[Aux]])+1,FIND("|",TablaCiudades[[#This Row],[Aux]])-FIND("¡",TablaCiudades[[#This Row],[Aux]])-1),TablaCiudades[[#This Row],[Nombre Aux]]) -> Midway Atoll | H2: =IFERROR(MID(TablaCiudades[[#This Row],[Nombre Aux]],FIND("|",TablaCiudades[[#This Row],[Nombre Aux]])+1,100),TablaCiudades[[#This Row],[Nombre Aux]]) -> United States | I2: =IFERROR(--SUBSTITUTE(D1,".",","),IFERROR(--D1,"")) -> 28.2417536 | J2: =IFERROR(--SUBSTITUTE(D2,".",","),IFERROR(--D2,"")) -> -177.3754308 | K2: =IFERROR(SUBSTITUTE(TablaCiudades[[#This Row],[Nombre Aux]],", ","¡",LEN(TablaCiudades[[#This Row],[Nombre Aux]])-LEN(SUBSTITUTE(TablaCiudades[[#This Row],[Nombre Aux]],",",""))-1),"¡"&TablaCiudades[[#This Row],[Nombre Aux]]) -> ¡Midway Atoll|United States
A3: =IFERROR(MID(A2,C2+LEN(B2)+1,LEN(A2)-C2-LEN(B2)),"") -> -177.3754308' display_name='Midway Atoll, United States' class='place' type='island' importance='0.525'/><place place_id='285377706' osm_type='relation' osm_id='8161698' place_rank='25' address_rank='0' boundingbox="27.9911406,28.4801332,-177.6505562,-177.0875122" lat='28.23605105' lon='-177.36856316535344' display_name='Midway Atoll, United States' class='boundary' type='region' importance='0.325'/></searchresults> | B3: display_name= | C3: 15 | D3: =IFERROR(LEFT(A4,FIND(MiAcento,A4)-1),"") -> Midway Atoll, United States | F3: =IFERROR(SUBSTITUTE(SUBSTITUTE(D6,", ","|",LEN(D6)-LEN(SUBSTITUTE(D6,",",""))),miNuevaCiudad&", ",""),"") -> Midway Atoll|United States | G3: =IFERROR(MID(TablaCiudades[[#This Row],[Aux]],FIND("¡",TablaCiudades[[#This Row],[Aux]])+1,FIND("|",TablaCiudades[[#This Row],[Aux]])-FIND("¡",TablaCiudades[[#This Row],[Aux]])-1),TablaCiudades[[#This Row],[Nombre Aux]]) -> Midway Atoll | H3: =IFERROR(MID(TablaCiudades[[#This Row],[Nombre Aux]],FIND("|",TablaCiudades[[#This Row],[Nombre Aux]])+1,100),TablaCiudades[[#This Row],[Nombre Aux]]) -> United States | I3: =IFERROR(--SUBSTITUTE(D4,".",","),IFERROR(--D4,"")) -> 28.23605105 | J3: =IFERROR(--SUBSTITUTE(D5,".",","),IFERROR(--D5,"")) -> -177.3685632 | K3: =IFERROR(SUBSTITUTE(TablaCiudades[[#This Row],[Nombre Aux]],", ","¡",LEN(TablaCiudades[[#This Row],[Nombre Aux]])-LEN(SUBSTITUTE(TablaCiudades[[#This Row],[Nombre Aux]],",",""))-1),"¡"&TablaCiudades[[#This Row],[Nombre Aux]]) -> ¡Midway Atoll|United States
A4: Midway Atoll, United States' class='place' type='island' importance='0.525'/><place place_id='285377706' osm_type='relation' osm_id='8161698' place_rank='25' address_rank='0' boundingbox="27.9911406,28.4801332,-177.6505562,-177.0875122" lat='28.23605105' lon='-177.36856316535344' display_name='Midway Atoll, United States' class='boundary' type='region' importance='0.325'/></searchresults> | B4: lat= | C4: 238 | D4: =IFERROR(LEFT(A5,FIND(MiAcento,A5)-1),"") -> 28.23605105 | F4: =IFERROR(SUBSTITUTE(SUBSTITUTE(D9,", ","|",LEN(D9)-LEN(SUBSTITUTE(D9,",",""))),miNuevaCiudad&", ",""),"") ->  | G4: =IFERROR(MID(TablaCiudades[[#This Row],[Aux]],FIND("¡",TablaCiudades[[#This Row],[Aux]])+1,FIND("|",TablaCiudades[[#This Row],[Aux]])-FIND("¡",TablaCiudades[[#This Row],[Aux]])-1),TablaCiudades[[#This Row],[Nombre Aux]]) ->  | H4: =IFERROR(MID(TablaCiudades[[#This Row],[Nombre Aux]],FIND("|",TablaCiudades[[#This Row],[Nombre Aux]])+1,100),TablaCiudades[[#This Row],[Nombre Aux]]) ->  | I4: =IFERROR(--SUBSTITUTE(D7,".",","),IFERROR(--D7,"")) ->  | J4: =IFERROR(--SUBSTITUTE(D8,".",","),IFERROR(--D8,"")) ->  | K4: =IFERROR(SUBSTITUTE(TablaCiudades[[#This Row],[Nombre Aux]],", ","¡",LEN(TablaCiudades[[#This Row],[Nombre Aux]])-LEN(SUBSTITUTE(TablaCiudades[[#This Row],[Nombre Aux]],",",""))-1),"¡"&TablaCiudades[[#This Row],[Nombre Aux]]) -> ¡
A5: 28.23605105' lon='-177.36856316535344' display_name='Midway Atoll, United States' class='boundary' type='region' importance='0.325'/></searchresults> | B5: lon= | C5: 14 | D5: =IFERROR(LEFT(A6,FIND(MiAcento,A6)-1),"") -> -177.36856316535344 | F5: =IFERROR(SUBSTITUTE(SUBSTITUTE(D12,", ","|",LEN(D12)-LEN(SUBSTITUTE(D12,",",""))),miNuevaCiudad&", ",""),"") ->  | G5: =IFERROR(MID(TablaCiudades[[#This Row],[Aux]],FIND("¡",TablaCiudades[[#This Row],[Aux]])+1,FIND("|",TablaCiudades[[#This Row],[Aux]])-FIND("¡",TablaCiudades[[#This Row],[Aux]])-1),TablaCiudades[[#This Row],[Nombre Aux]]) ->  | H5: =IFERROR(MID(TablaCiudades[[#This Row],[Nombre Aux]],FIND("|",TablaCiudades[[#This Row],[Nombre Aux]])+1,100),TablaCiudades[[#This Row],[Nombre Aux]]) ->  | I5: =IFERROR(--SUBSTITUTE(D10,".",","),IFERROR(--D10,"")) ->  | J5: =IFERROR(--SUBSTITUTE(D11,".",","),IFERROR(--D11,"")) ->  | K5: =IFERROR(SUBSTITUTE(TablaCiudades[[#This Row],[Nombre Aux]],", ","¡",LEN(TablaCiudades[[#This Row],[Nombre Aux]])-LEN(SUBSTITUTE(TablaCiudades[[#This Row],[Nombre Aux]],",",""))-1),"¡"&TablaCiudades[[#This Row],[Nombre Aux]]) -> ¡
A6: -177.36856316535344' display_name='Midway Atoll, United States' class='boundary' type='region' importance='0.325'/></searchresults> | B6: display_name= | C6: 22 | D6: =IFERROR(LEFT(A7,FIND(MiAcento,A7)-1),"") -> Midway Atoll, United States | F6: =IFERROR(SUBSTITUTE(SUBSTITUTE(D15,", ","|",LEN(D15)-LEN(SUBSTITUTE(D15,",",""))),miNuevaCiudad&", ",""),"") ->  | G6: =IFERROR(MID(TablaCiudades[[#This Row],[Aux]],FIND("¡",TablaCiudades[[#This Row],[Aux]])+1,FIND("|",TablaCiudades[[#This Row],[Aux]])-FIND("¡",TablaCiudades[[#This Row],[Aux]])-1),TablaCiudades[[#This Row],[Nombre Aux]]) ->  | H6: =IFERROR(MID(TablaCiudades[[#This Row],[Nombre Aux]],FIND("|",TablaCiudades[[#This Row],[Nombre Aux]])+1,100),TablaCiudades[[#This Row],[Nombre Aux]]) ->  | I6: =IFERROR(--SUBSTITUTE(D13,".",","),IFERROR(--D13,"")) ->  | J6: =IFERROR(--SUBSTITUTE(D14,".",","),IFERROR(--D14,"")) ->  | K6: =IFERROR(SUBSTITUTE(TablaCiudades[[#This Row],[Nombre Aux]],", ","¡",LEN(TablaCiudades[[#This Row],[Nombre Aux]])-LEN(SUBSTITUTE(TablaCiudades[[#This Row],[Nombre Aux]],",",""))-1),"¡"&TablaCiudades[[#This Row],[Nombre Aux]]) -> ¡
A7: Midway Atoll, United States' class='boundary' type='region' importance='0.325'/></searchresults> | B7: lat= | D7: =IFERROR(LEFT(A8,FIND(MiAcento,A8)-1),"") ->  | F7: =IFERROR(SUBSTITUTE(SUBSTITUTE(D18,", ","|",LEN(D18)-LEN(SUBSTITUTE(D18,",",""))),miNuevaCiudad&", ",""),"") ->  | G7: =IFERROR(MID(TablaCiudades[[#This Row],[Aux]],FIND("¡",TablaCiudades[[#This Row],[Aux]])+1,FIND("|",TablaCiudades[[#This Row],[Aux]])-FIND("¡",TablaCiudades[[#This Row],[Aux]])-1),TablaCiudades[[#This Row],[Nombre Aux]]) ->  | H7: =IFERROR(MID(TablaCiudades[[#This Row],[Nombre Aux]],FIND("|",TablaCiudades[[#This Row],[Nombre Aux]])+1,100),TablaCiudades[[#This Row],[Nombre Aux]]) ->  | I7: =IFERROR(--SUBSTITUTE(D16,".",","),IFERROR(--D16,"")) ->  | J7: =IFERROR(--SUBSTITUTE(D17,".",","),IFERROR(--D17,"")) ->  | K7: =IFERROR(SUBSTITUTE(TablaCiudades[[#This Row],[Nombre Aux]],", ","¡",LEN(TablaCiudades[[#This Row],[Nombre Aux]])-LEN(SUBSTITUTE(TablaCiudades[[#This Row],[Nombre Aux]],",",""))-1),"¡"&TablaCiudades[[#This Row],[Nombre Aux]]) -> ¡
B8: lon= | D8: =IFERROR(LEFT(A9,FIND(MiAcento,A9)-1),"") ->  | F8: =IFERROR(SUBSTITUTE(SUBSTITUTE(D21,", ","|",LEN(D21)-LEN(SUBSTITUTE(D21,",",""))),miNuevaCiudad&", ",""),"") ->  | G8: =IFERROR(MID(TablaCiudades[[#This Row],[Aux]],FIND("¡",TablaCiudades[[#This Row],[Aux]])+1,FIND("|",TablaCiudades[[#This Row],[Aux]])-FIND("¡",TablaCiudades[[#This Row],[Aux]])-1),TablaCiudades[[#This Row],[Nombre Aux]]) ->  | H8: =IFERROR(MID(TablaCiudades[[#This Row],[Nombre Aux]],FIND("|",TablaCiudades[[#This Row],[Nombre Aux]])+1,100),TablaCiudades[[#This Row],[Nombre Aux]]) ->  | I8: =IFERROR(--SUBSTITUTE(D19,".",","),IFERROR(--D19,"")) ->  | J8: =IFERROR(--SUBSTITUTE(D20,".",","),IFERROR(--D20,"")) ->  | K8: =IFERROR(SUBSTITUTE(TablaCiudades[[#This Row],[Nombre Aux]],", ","¡",LEN(TablaCiudades[[#This Row],[Nombre Aux]])-LEN(SUBSTITUTE(TablaCiudades[[#This Row],[Nombre Aux]],",",""))-1),"¡"&TablaCiudades[[#This Row],[Nombre Aux]]) -> ¡
B9: display_name= | D9: =IFERROR(LEFT(A10,FIND(MiAcento,A10)-1),"") ->  | F9: =IFERROR(SUBSTITUTE(SUBSTITUTE(D24,", ","|",LEN(D24)-LEN(SUBSTITUTE(D24,",",""))),miNuevaCiudad&", ",""),"") ->  | G9: =IFERROR(MID(TablaCiudades[[#This Row],[Aux]],FIND("¡",TablaCiudades[[#This Row],[Aux]])+1,FIND("|",TablaCiudades[[#This Row],[Aux]])-FIND("¡",TablaCiudades[[#This Row],[Aux]])-1),TablaCiudades[[#This Row],[Nombre Aux]]) ->  | H9: =IFERROR(MID(TablaCiudades[[#This Row],[Nombre Aux]],FIND("|",TablaCiudades[[#This Row],[Nombre Aux]])+1,100),TablaCiudades[[#This Row],[Nombre Aux]]) ->  | I9: =IFERROR(--SUBSTITUTE(D22,".",","),IFERROR(--D22,"")) ->  | J9: =IFERROR(--SUBSTITUTE(D23,".",","),IFERROR(--D23,"")) ->  | K9: =IFERROR(SUBSTITUTE(TablaCiudades[[#This Row],[Nombre Aux]],", ","¡",LEN(TablaCiudades[[#This Row],[Nombre Aux]])-LEN(SUBSTITUTE(TablaCiudades[[#This Row],[Nombre Aux]],",",""))-1),"¡"&TablaCiudades[[#This Row],[Nombre Aux]]) -> ¡
B10: lat= | D10: =IFERROR(LEFT(A11,FIND(MiAcento,A11)-1),"") ->  | F10: =IFERROR(SUBSTITUTE(SUBSTITUTE(D27,", ","|",LEN(D27)-LEN(SUBSTITUTE(D27,",",""))),miNuevaCiudad&", ",""),"") ->  | G10: =IFERROR(MID(TablaCiudades[[#This Row],[Aux]],FIND("¡",TablaCiudades[[#This Row],[Aux]])+1,FIND("|",TablaCiudades[[#This Row],[Aux]])-FIND("¡",TablaCiudades[[#This Row],[Aux]])-1),TablaCiudades[[#This Row],[Nombre Aux]]) ->  | H10: =IFERROR(MID(TablaCiudades[[#This Row],[Nombre Aux]],FIND("|",TablaCiudades[[#This Row],[Nombre Aux]])+1,100),TablaCiudades[[#This Row],[Nombre Aux]]) ->  | I10: =IFERROR(--SUBSTITUTE(D25,".",","),IFERROR(--D25,"")) ->  | J10: =IFERROR(--SUBSTITUTE(D26,".",","),IFERROR(--D26,"")) ->  | K10: =IFERROR(SUBSTITUTE(TablaCiudades[[#This Row],[Nombre Aux]],", ","¡",LEN(TablaCiudades[[#This Row],[Nombre Aux]])-LEN(SUBSTITUTE(TablaCiudades[[#This Row],[Nombre Aux]],",",""))-1),"¡"&TablaCiudades[[#This Row],[Nombre Aux]]) -> ¡
B11: lon= | D11: =IFERROR(LEFT(A12,FIND(MiAcento,A12)-1),"") ->  | F11: =IFERROR(SUBSTITUTE(SUBSTITUTE(D30,", ","|",LEN(D30)-LEN(SUBSTITUTE(D30,",",""))),miNuevaCiudad&", ",""),"") ->  | G11: =IFERROR(MID(TablaCiudades[[#This Row],[Aux]],FIND("¡",TablaCiudades[[#This Row],[Aux]])+1,FIND("|",TablaCiudades[[#This Row],[Aux]])-FIND("¡",TablaCiudades[[#This Row],[Aux]])-1),TablaCiudades[[#This Row],[Nombre Aux]]) ->  | H11: =IFERROR(MID(TablaCiudades[[#This Row],[Nombre Aux]],FIND("|",TablaCiudades[[#This Row],[Nombre Aux]])+1,100),TablaCiudades[[#This Row],[Nombre Aux]]) ->  | I11: =IFERROR(--SUBSTITUTE(D28,".",","),IFERROR(--D28,"")) ->  | J11: =IFERROR(--SUBSTITUTE(D29,".",","),IFERROR(--D29,"")) ->  | K11: =IFERROR(SUBSTITUTE(TablaCiudades[[#This Row],[Nombre Aux]],", ","¡",LEN(TablaCiudades[[#This Row],[Nombre Aux]])-LEN(SUBSTITUTE(TablaCiudades[[#This Row],[Nombre Aux]],",",""))-1),"¡"&TablaCiudades[[#This Row],[Nombre Aux]]) -> ¡
B12: display_name= | D12: =IFERROR(LEFT(A13,FIND(MiAcento,A13)-1),"") ->  | F12: =IFERROR(SUBSTITUTE(SUBSTITUTE(D33,", ","|",LEN(D33)-LEN(SUBSTITUTE(D33,",",""))),miNuevaCiudad&", ",""),"") ->  | G12: =IFERROR(MID(TablaCiudades[[#This Row],[Aux]],FIND("¡",TablaCiudades[[#This Row],[Aux]])+1,FIND("|",TablaCiudades[[#This Row],[Aux]])-FIND("¡",TablaCiudades[[#This Row],[Aux]])-1),TablaCiudades[[#This Row],[Nombre Aux]]) ->  | H12: =IFERROR(MID(TablaCiudades[[#This Row],[Nombre Aux]],FIND("|",TablaCiudades[[#This Row],[Nombre Aux]])+1,100),TablaCiudades[[#This Row],[Nombre Aux]]) ->  | I12: =IFERROR(--SUBSTITUTE(D31,".",","),IFERROR(--D31,"")) ->  | J12: =IFERROR(--SUBSTITUTE(D32,".",","),IFERROR(--D32,"")) ->  | K12: =IFERROR(SUBSTITUTE(TablaCiudades[[#This Row],[Nombre Aux]],", ","¡",LEN(TablaCiudades[[#This Row],[Nombre Aux]])-LEN(SUBSTITUTE(TablaCiudades[[#This Row],[Nombre Aux]],",",""))-1),"¡"&TablaCiudades[[#This Row],[Nombre Aux]]) -> ¡
B13: lat= | D13: =IFERROR(LEFT(A14,FIND(MiAcento,A14)-1),"") ->  | F13: =IFERROR(SUBSTITUTE(SUBSTITUTE(D36,", ","|",LEN(D36)-LEN(SUBSTITUTE(D36,",",""))),miNuevaCiudad&", ",""),"") ->  | G13: =IFERROR(MID(TablaCiudades[[#This Row],[Aux]],FIND("¡",TablaCiudades[[#This Row],[Aux]])+1,FIND("|",TablaCiudades[[#This Row],[Aux]])-FIND("¡",TablaCiudades[[#This Row],[Aux]])-1),TablaCiudades[[#This Row],[Nombre Aux]]) ->  | H13: =IFERROR(MID(TablaCiudades[[#This Row],[Nombre Aux]],FIND("|",TablaCiudades[[#This Row],[Nombre Aux]])+1,100),TablaCiudades[[#This Row],[Nombre Aux]]) ->  | I13: =IFERROR(--SUBSTITUTE(D34,".",","),IFERROR(--D34,"")) ->  | J13: =IFERROR(--SUBSTITUTE(D35,".",","),IFERROR(--D35,"")) ->  | K13: =IFERROR(SUBSTITUTE(TablaCiudades[[#This Row],[Nombre Aux]],", ","¡",LEN(TablaCiudades[[#This Row],[Nombre Aux]])-LEN(SUBSTITUTE(TablaCiudades[[#This Row],[Nombre Aux]],",",""))-1),"¡"&TablaCiudades[[#This Row],[Nombre Aux]]) -> ¡
B14: lon= | D14: =IFERROR(LEFT(A15,FIND(MiAcento,A15)-1),"") ->  | F14: =IFERROR(SUBSTITUTE(SUBSTITUTE(D39,", ","|",LEN(D39)-LEN(SUBSTITUTE(D39,",",""))),miNuevaCiudad&", ",""),"") ->  | G14: =IFERROR(MID(TablaCiudades[[#This Row],[Aux]],FIND("¡",TablaCiudades[[#This Row],[Aux]])+1,FIND("|",TablaCiudades[[#This Row],[Aux]])-FIND("¡",TablaCiudades[[#This Row],[Aux]])-1),TablaCiudades[[#This Row],[Nombre Aux]]) ->  | H14: =IFERROR(MID(TablaCiudades[[#This Row],[Nombre Aux]],FIND("|",TablaCiudades[[#This Row],[Nombre Aux]])+1,100),TablaCiudades[[#This Row],[Nombre Aux]]) ->  | I14: =IFERROR(--SUBSTITUTE(D37,".",","),IFERROR(--D37,"")) ->  | J14: =IFERROR(--SUBSTITUTE(D38,".",","),IFERROR(--D38,"")) ->  | K14: =IFERROR(SUBSTITUTE(TablaCiudades[[#This Row],[Nombre Aux]],", ","¡",LEN(TablaCiudades[[#This Row],[Nombre Aux]])-LEN(SUBSTITUTE(TablaCiudades[[#This Row],[Nombre Aux]],",",""))-1),"¡"&TablaCiudades[[#This Row],[Nombre Aux]]) -> ¡
B15: display_name= | D15: =IFERROR(LEFT(A16,FIND(MiAcento,A16)-1),"") ->  | F15: =IFERROR(SUBSTITUTE(SUBSTITUTE(D42,", ","|",LEN(D42)-LEN(SUBSTITUTE(D42,",",""))),miNuevaCiudad&", ",""),"") ->  | G15: =IFERROR(MID(TablaCiudades[[#This Row],[Aux]],FIND("¡",TablaCiudades[[#This Row],[Aux]])+1,FIND("|",TablaCiudades[[#This Row],[Aux]])-FIND("¡",TablaCiudades[[#This Row],[Aux]])-1),TablaCiudades[[#This Row],[Nombre Aux]]) ->  | H15: =IFERROR(MID(TablaCiudades[[#This Row],[Nombre Aux]],FIND("|",TablaCiudades[[#This Row],[Nombre Aux]])+1,100),TablaCiudades[[#This Row],[Nombre Aux]]) ->  | I15: =IFERROR(--SUBSTITUTE(D40,".",","),IFERROR(--D40,"")) ->  | J15: =IFERROR(--SUBSTITUTE(D41,".",","),IFERROR(--D41,"")) ->  | K15: =IFERROR(SUBSTITUTE(TablaCiudades[[#This Row],[Nombre Aux]],", ","¡",LEN(TablaCiudades[[#This Row],[Nombre Aux]])-LEN(SUBSTITUTE(TablaCiudades[[#This Row],[Nombre Aux]],",",""))-1),"¡"&TablaCiudades[[#This Row],[Nombre Aux]]) -> ¡
B16: lat= | D16: =IFERROR(LEFT(A17,FIND(MiAcento,A17)-1),"") ->  | F16: =IFERROR(SUBSTITUTE(SUBSTITUTE(D45,", ","|",LEN(D45)-LEN(SUBSTITUTE(D45,",",""))),miNuevaCiudad&", ",""),"") ->  | G16: =IFERROR(MID(TablaCiudades[[#This Row],[Aux]],FIND("¡",TablaCiudades[[#This Row],[Aux]])+1,FIND("|",TablaCiudades[[#This Row],[Aux]])-FIND("¡",TablaCiudades[[#This Row],[Aux]])-1),TablaCiudades[[#This Row],[Nombre Aux]]) ->  | H16: =IFERROR(MID(TablaCiudades[[#This Row],[Nombre Aux]],FIND("|",TablaCiudades[[#This Row],[Nombre Aux]])+1,100),TablaCiudades[[#This Row],[Nombre Aux]]) ->  | I16: =IFERROR(--SUBSTITUTE(D43,".",","),IFERROR(--D43,"")) ->  | J16: =IFERROR(--SUBSTITUTE(D44,".",","),IFERROR(--D44,"")) ->  | K16: =IFERROR(SUBSTITUTE(TablaCiudades[[#This Row],[Nombre Aux]],", ","¡",LEN(TablaCiudades[[#This Row],[Nombre Aux]])-LEN(SUBSTITUTE(TablaCiudades[[#This Row],[Nombre Aux]],",",""))-1),"¡"&TablaCiudades[[#This Row],[Nombre Aux]]) -> ¡
B17: lon= | D17: =IFERROR(LEFT(A18,FIND(MiAcento,A18)-1),"") ->  | F17: =IFERROR(SUBSTITUTE(SUBSTITUTE(D48,", ","|",LEN(D48)-LEN(SUBSTITUTE(D48,",",""))),miNuevaCiudad&", ",""),"") ->  | G17: =IFERROR(MID(TablaCiudades[[#This Row],[Aux]],FIND("¡",TablaCiudades[[#This Row],[Aux]])+1,FIND("|",TablaCiudades[[#This Row],[Aux]])-FIND("¡",TablaCiudades[[#This Row],[Aux]])-1),TablaCiudades[[#This Row],[Nombre Aux]]) ->  | H17: =IFERROR(MID(TablaCiudades[[#This Row],[Nombre Aux]],FIND("|",TablaCiudades[[#This Row],[Nombre Aux]])+1,100),TablaCiudades[[#This Row],[Nombre Aux]]) ->  | I17: =IFERROR(--SUBSTITUTE(D46,".",","),IFERROR(--D46,"")) ->  | J17: =IFERROR(--SUBSTITUTE(D47,".",","),IFERROR(--D47,"")) ->  | K17: =IFERROR(SUBSTITUTE(TablaCiudades[[#This Row],[Nombre Aux]],", ","¡",LEN(TablaCiudades[[#This Row],[Nombre Aux]])-LEN(SUBSTITUTE(TablaCiudades[[#This Row],[Nombre Aux]],",",""))-1),"¡"&TablaCiudades[[#This Row],[Nombre Aux]]) -> ¡
B18: display_name= | D18: =IFERROR(LEFT(A19,FIND(MiAcento,A19)-1),"") ->  | F18: =IFERROR(SUBSTITUTE(SUBSTITUTE(D51,", ","|",LEN(D51)-LEN(SUBSTITUTE(D51,",",""))),miNuevaCiudad&", ",""),"") ->  | G18: =IFERROR(MID(TablaCiudades[[#This Row],[Aux]],FIND("¡",TablaCiudades[[#This Row],[Aux]])+1,FIND("|",TablaCiudades[[#This Row],[Aux]])-FIND("¡",TablaCiudades[[#This Row],[Aux]])-1),TablaCiudades[[#This Row],[Nombre Aux]]) ->  | H18: =IFERROR(MID(TablaCiudades[[#This Row],[Nombre Aux]],FIND("|",TablaCiudades[[#This Row],[Nombre Aux]])+1,100),TablaCiudades[[#This Row],[Nombre Aux]]) ->  | I18: =IFERROR(--SUBSTITUTE(D49,".",","),IFERROR(--D49,"")) ->  | J18: =IFERROR(--SUBSTITUTE(D50,".",","),IFERROR(--D50,"")) ->  | K18: =IFERROR(SUBSTITUTE(TablaCiudades[[#This Row],[Nombre Aux]],", ","¡",LEN(TablaCiudades[[#This Row],[Nombre Aux]])-LEN(SUBSTITUTE(TablaCiudades[[#This Row],[Nombre Aux]],",",""))-1),"¡"&TablaCiudades[[#This Row],[Nombre Aux]]) -> ¡
B19: lat= | D19: =IFERROR(LEFT(A20,FIND(MiAcento,A20)-1),"") ->  | F19: =IFERROR(SUBSTITUTE(SUBSTITUTE(D54,", ","|",LEN(D54)-LEN(SUBSTITUTE(D54,",",""))),miNuevaCiudad&", ",""),"") ->  | G19: =IFERROR(MID(TablaCiudades[[#This Row],[Aux]],FIND("¡",TablaCiudades[[#This Row],[Aux]])+1,FIND("|",TablaCiudades[[#This Row],[Aux]])-FIND("¡",TablaCiudades[[#This Row],[Aux]])-1),TablaCiudades[[#This Row],[Nombre Aux]]) ->  | H19: =IFERROR(MID(TablaCiudades[[#This Row],[Nombre Aux]],FIND("|",TablaCiudades[[#This Row],[Nombre Aux]])+1,100),TablaCiudades[[#This Row],[Nombre Aux]]) ->  | I19: =IFERROR(--SUBSTITUTE(D52,".",","),IFERROR(--D52,"")) ->  | J19: =IFERROR(--SUBSTITUTE(D53,".",","),IFERROR(--D53,"")) ->  | K19: =IFERROR(SUBSTITUTE(TablaCiudades[[#This Row],[Nombre Aux]],", ","¡",LEN(TablaCiudades[[#This Row],[Nombre Aux]])-LEN(SUBSTITUTE(TablaCiudades[[#This Row],[Nombre Aux]],",",""))-1),"¡"&TablaCiudades[[#This Row],[Nombre Aux]]) -> ¡
B20: lon= | D20: =IFERROR(LEFT(A21,FIND(MiAcento,A21)-1),"") ->  | F20: =IFERROR(SUBSTITUTE(SUBSTITUTE(D57,", ","|",LEN(D57)-LEN(SUBSTITUTE(D57,",",""))),miNuevaCiudad&", ",""),"") ->  | G20: =IFERROR(MID(TablaCiudades[[#This Row],[Aux]],FIND("¡",TablaCiudades[[#This Row],[Aux]])+1,FIND("|",TablaCiudades[[#This Row],[Aux]])-FIND("¡",TablaCiudades[[#This Row],[Aux]])-1),TablaCiudades[[#This Row],[Nombre Aux]]) ->  | H20: =IFERROR(MID(TablaCiudades[[#This Row],[Nombre Aux]],FIND("|",TablaCiudades[[#This Row],[Nombre Aux]])+1,100),TablaCiudades[[#This Row],[Nombre Aux]]) ->  | I20: =IFERROR(--SUBSTITUTE(D55,".",","),IFERROR(--D55,"")) ->  | J20: =IFERROR(--SUBSTITUTE(D56,".",","),IFERROR(--D56,"")) ->  | K20: =IFERROR(SUBSTITUTE(TablaCiudades[[#This Row],[Nombre Aux]],", ","¡",LEN(TablaCiudades[[#This Row],[Nombre Aux]])-LEN(SUBSTITUTE(TablaCiudades[[#This Row],[Nombre Aux]],",",""))-1),"¡"&TablaCiudades[[#This Row],[Nombre Aux]]) -> ¡
B21: display_name= | D21: =IFERROR(LEFT(A22,FIND(MiAcento,A22)-1),"") ->  | F21: =IFERROR(SUBSTITUTE(SUBSTITUTE(D60,", ","|",LEN(D60)-LEN(SUBSTITUTE(D60,",",""))),miNuevaCiudad&", ",""),"") ->  | G21: =IFERROR(MID(TablaCiudades[[#This Row],[Aux]],FIND("¡",TablaCiudades[[#This Row],[Aux]])+1,FIND("|",TablaCiudades[[#This Row],[Aux]])-FIND("¡",TablaCiudades[[#This Row],[Aux]])-1),TablaCiudades[[#This Row],[Nombre Aux]]) ->  | H21: =IFERROR(MID(TablaCiudades[[#This Row],[Nombre Aux]],FIND("|",TablaCiudades[[#This Row],[Nombre Aux]])+1,100),TablaCiudades[[#This Row],[Nombre Aux]]) ->  | I21: =IFERROR(--SUBSTITUTE(D58,".",","),IFERROR(--D58,"")) ->  | J21: =IFERROR(--SUBSTITUTE(D59,".",","),IFERROR(--D59,"")) ->  | K21: =IFERROR(SUBSTITUTE(TablaCiudades[[#This Row],[Nombre Aux]],", ","¡",LEN(TablaCiudades[[#This Row],[Nombre Aux]])-LEN(SUBSTITUTE(TablaCiudades[[#This Row],[Nombre Aux]],",",""))-1),"¡"&TablaCiudades[[#This Row],[Nombre Aux]]) -> ¡
B22: lat= | D22: =IFERROR(LEFT(A23,FIND(MiAcento,A23)-1),"") -> 
B23: lon= | D23: =IFERROR(LEFT(A24,FIND(MiAcento,A24)-1),"") ->  | F23: =miNuevaCiudad -> Midway Atoll
B24: display_name= | D24: =IFERROR(LEFT(A25,FIND(MiAcento,A25)-1),"") ->  | E24: 2 | F24: =MiRegión & " - " & MiNuevoPaís -> Midway Atoll - United States | G24: =INDEX(TablaCiudades[Región],MiNúmRegión) -> Midway Atoll | H24: =INDEX(TablaCiudades[País],MiNúmRegión) -> United States | I24: =INDEX(TablaCiudades[Lat],MiNúmRegión) -> 28.23605105 | J24: =INDEX(TablaCiudades[Long],MiNúmRegión) -> -177.3685632
B25: lat= | D25: =IFERROR(LEFT(A26,FIND(MiAcento,A26)-1),"") -> 
B26: lon= | D26: =IFERROR(LEFT(A27,FIND(MiAcento,A27)-1),"") -> 
B27: display_name= | D27: =IFERROR(LEFT(A28,FIND(MiAcento,A28)-1),"") -> 
B28: lat= | D28: =IFERROR(LEFT(A29,FIND(MiAcento,A29)-1),"") -> 
B29: lon= | D29: =IFERROR(LEFT(A30,FIND(MiAcento,A30)-1),"") -> 
B30: display_name= | D30: =IFERROR(LEFT(A31,FIND(MiAcento,A31)-1),"") -> 
A31: =IFERROR(MID(A30,C30+LEN(B30)+1,LEN(A30)-C30-LEN(B30)),"") ->  | B31: lat= | C31: =IFERROR(FIND(B31,A31),"") ->  | D31: =IFERROR(LEFT(A32,FIND(MiAcento,A32)-1),"") -> 
B32: lon= | D32: =IFERROR(LEFT(A33,FIND(MiAcento,A33)-1),"") -> 
B33: display_name= | D33: =IFERROR(LEFT(A34,FIND(MiAcento,A34)-1),"") -> 
A34: =IFERROR(MID(A33,C33+LEN(B33)+1,LEN(A33)-C33-LEN(B33)),"") ->  | B34: lat= | C34: =IFERROR(FIND(B34,A34),"") ->  | D34: =IFERROR(LEFT(A35,FIND(MiAcento,A35)-1),"") -> 
B35: lon= | D35: =IFERROR(LEFT(A36,FIND(MiAcento,A36)-1),"") -> 
B36: display_name= | D36: =IFERROR(LEFT(A37,FIND(MiAcento,A37)-1),"") -> 
B37: lat= | D37: =IFERROR(LEFT(A38,FIND(MiAcento,A38)-1),"") -> 
B38: lon= | D38: =IFERROR(LEFT(A39,FIND(MiAcento,A39)-1),"") -> 
B39: display_name= | D39: =IFERROR(LEFT(A40,FIND(MiAcento,A40)-1),"") -> 
B40: lat= | D40: =IFERROR(LEFT(A41,FIND(MiAcento,A41)-1),"") -> 
B41: lon= | D41: =IFERROR(LEFT(A42,FIND(MiAcento,A42)-1),"") -> 
A42: =IFERROR(MID(A41,C41+LEN(B41)+1,LEN(A41)-C41-LEN(B41)),"") ->  | B42: display_name= | C42: =IFERROR(FIND(B42,A42),"") ->  | D42: =IFERROR(LEFT(A43,FIND(MiAcento,A43)-1),"") -> 
B43: lat= | D43: =IFERROR(LEFT(A44,FIND(MiAcento,A44)-1),"") -> 
B44: lon= | D44: =IFERROR(LEFT(A45,FIND(MiAcento,A45)-1),"") -> 
B45: display_name= | D45: =IFERROR(LEFT(A46,FIND(MiAcento,A46)-1),"") -> 
B46: lat= | D46: =IFERROR(LEFT(A47,FIND(MiAcento,A47)-1),"") -> 
B47: lon= | D47: =IFERROR(LEFT(A48,FIND(MiAcento,A48)-1),"") -> 
B48: display_name= | D48: =IFERROR(LEFT(A49,FIND(MiAcento,A49)-1),"") -> 
B49: lat= | D49: =IFERROR(LEFT(A50,FIND(MiAcento,A50)-1),"") -> 
B50: lon= | D50: =IFERROR(LEFT(A51,FIND(MiAcento,A51)-1),"") -> 
B51: display_name= | D51: =IFERROR(LEFT(A52,FIND(MiAcento,A52)-1),"") -> 
B52: lat= | D52: =IFERROR(LEFT(A53,FIND(MiAcento,A53)-1),"") -> 
B53: lon= | D53: =IFERROR(LEFT(A54,FIND(MiAcento,A54)-1),"") -> 
B54: display_name= | D54: =IFERROR(LEFT(A55,FIND(MiAcento,A55)-1),"") -> 
B55: lat= | D55: =IFERROR(LEFT(A56,FIND(MiAcento,A56)-1),"") -> 
B56: lon= | D56: =IFERROR(LEFT(A57,FIND(MiAcento,A57)-1),"") -> 
B57: display_name= | D57: =IFERROR(LEFT(A58,FIND(MiAcento,A58)-1),"") -> 
B58: lat= | D58: =IFERROR(LEFT(A59,FIND(MiAcento,A59)-1),"") -> 
B59: lon= | D59: =IFERROR(LEFT(A60,FIND(MiAcento,A60)-1),"") -> 
B60: display_name= | D60: =IFERROR(LEFT(A61,FIND(MiAcento,A61)-1),"") -> 
B61: lat= | D61: =IFERROR(LEFT(A62,FIND(MiAcento,A62)-1),"") -> 

Sheet Tiempos
A1: =VLOOKUP(Idiomas!$A$33,TablaIdiomas[],Total_Idiomas,FALSE) -> Hora Minuto | B1: =VLOOKUP(Idiomas!$A$34,TablaIdiomas[],Total_Idiomas,FALSE) -> Radianes Horas | C1: =VLOOKUP(Idiomas!$A$35,TablaIdiomas[],Total_Idiomas,FALSE) -> Seno Horas | D1: =VLOOKUP(Idiomas!$A$36,TablaIdiomas[],Total_Idiomas,FALSE) -> Coseno Horas | E1: =VLOOKUP(Idiomas!$A$37,TablaIdiomas[],Total_Idiomas,FALSE) -> hh:mm | F1: =VLOOKUP(Idiomas!$A$38,TablaIdiomas[],Total_Idiomas,FALSE) -> Minuto Segundo | G1: =VLOOKUP(Idiomas!$A$39,TablaIdiomas[],Total_Idiomas,FALSE) -> Radianes Minutos | H1: =VLOOKUP(Idiomas!$A$40,TablaIdiomas[],Total_Idiomas,FALSE) -> Seno Minutos | I1: =VLOOKUP(Idiomas!$A$41,TablaIdiomas[],Total_Idiomas,FALSE) -> Coseno Minutos | J1: =VLOOKUP(Idiomas!$A$42,TablaIdiomas[],Total_Idiomas,FALSE) -> mm:ss | K1: =VLOOKUP(Idiomas!$A$43,TablaIdiomas[],Total_Idiomas,FALSE) -> Segundos | L1: =VLOOKUP(Idiomas!$A$44,TablaIdiomas[],Total_Idiomas,FALSE) -> Radianes Segundos | M1: =VLOOKUP(Idiomas!$A$45,TablaIdiomas[],Total_Idiomas,FALSE) -> Seno Segundos | N1: =VLOOKUP(Idiomas!$A$46,TablaIdiomas[],Total_Idiomas,FALSE) -> Coseno Segundos
A3: =HOUR($E3)*100+MINUTE($E3) -> 0 | B3: =ROUND(RADIANS(30*INT($A3/100)+($A3-INT($A3/100)*100)/2),2) -> 0 | C3: =ROUND(SIN($B3),2) -> 0 | D3: =ROUND(COS($B3),2) -> 1 | E3: 00:00:00 | F3: =MINUTE($J3)*100+SECOND($J3) -> 0 | G3: =ROUND(RADIANS(6*INT($F3/100)+($F3-INT($F3/100)*100)/10),2) -> 0 | H3: =ROUND(SIN($G3),2) -> 0 | I3: =ROUND(COS($G3),2) -> 1 | J3: 00:00:00 | K3: 0 | L3: =ROUND(RADIANS(6*$K3),2) -> 0 | M3: =ROUND(SIN($L3),2) -> 0 | N3: =ROUND(COS($L3),2) -> 1
A4: =HOUR($E4)*100+MINUTE($E4) -> 10 | B4: =ROUND(RADIANS(30*INT($A4/100)+($A4-INT($A4/100)*100)/2),2) -> 0.09 | C4: =ROUND(SIN($B4),2) -> 0.09 | D4: =ROUND(COS($B4),2) -> 1 | E4: 00:10:00 | F4: =MINUTE($J4)*100+SECOND($J4) -> 15 | G4: =ROUND(RADIANS(6*INT($F4/100)+($F4-INT($F4/100)*100)/10),2) -> 0.03 | H4: =ROUND(SIN($G4),2) -> 0.03 | I4: =ROUND(COS($G4),2) -> 1 | J4: 00:00:15 | K4: 1 | L4: =ROUND(RADIANS(6*$K4),2) -> 0.1 | M4: =ROUND(SIN($L4),2) -> 0.1 | N4: =ROUND(COS($L4),2) -> 1
A5: 20 | B5: 0.17 | C5: 0.17 | D5: 0.99 | E5: 00:20:00 | F5: 30 | G5: 0.05 | H5: 0.05 | I5: 1 | J5: 00:00:30 | K5: 2 | L5: 0.21 | M5: 0.21 | N5: 0.98
A6: 30 | B6: 0.26 | C6: 0.26 | D6: 0.97 | E6: 00:30:00 | F6: 45 | G6: 0.08 | H6: 0.08 | I6: 1 | J6: 00:00:45 | K6: 3 | L6: 0.31 | M6: 0.31 | N6: 0.95
A7: 40 | B7: 0.35 | C7: 0.34 | D7: 0.94 | E7: 00:40:00 | F7: 100 | G7: 0.1 | H7: 0.1 | I7: 1 | J7: 00:01:00 | K7: 4 | L7: 0.42 | M7: 0.41 | N7: 0.91
A8: 50 | B8: 0.44 | C8: 0.43 | D8: 0.9 | E8: 00:50:00 | F8: 115 | G8: 0.13 | H8: 0.13 | I8: 0.99 | J8: 00:01:15 | K8: 5 | L8: 0.52 | M8: 0.5 | N8: 0.87
A9: 100 | B9: 0.52 | C9: 0.5 | D9: 0.87 | E9: 01:00:00 | F9: 130 | G9: 0.16 | H9: 0.16 | I9: 0.99 | J9: 00:01:30 | K9: 6 | L9: 0.63 | M9: 0.59 | N9: 0.81
A10: 110 | B10: 0.61 | C10: 0.57 | D10: 0.82 | E10: 01:10:00 | F10: 145 | G10: 0.18 | H10: 0.18 | I10: 0.98 | J10: 00:01:45 | K10: 7 | L10: 0.73 | M10: 0.67 | N10: 0.75
A11: 120 | B11: 0.7 | C11: 0.64 | D11: 0.76 | E11: 01:20:00 | F11: 200 | G11: 0.21 | H11: 0.21 | I11: 0.98 | J11: 00:02:00 | K11: 8 | L11: 0.84 | M11: 0.74 | N11: 0.67
A12: 130 | B12: 0.79 | C12: 0.71 | D12: 0.7 | E12: 01:30:00 | F12: 215 | G12: 0.24 | H12: 0.24 | I12: 0.97 | J12: 00:02:15 | K12: 9 | L12: 0.94 | M12: 0.81 | N12: 0.59
A13: 140 | B13: 0.87 | C13: 0.76 | D13: 0.64 | E13: 01:40:00 | F13: 230 | G13: 0.26 | H13: 0.26 | I13: 0.97 | J13: 00:02:30 | K13: 10 | L13: 1.05 | M13: 0.87 | N13: 0.5
A14: 150 | B14: 0.96 | C14: 0.82 | D14: 0.57 | E14: 01:50:00 | F14: 245 | G14: 0.29 | H14: 0.29 | I14: 0.96 | J14: 00:02:45 | K14: 11 | L14: 1.15 | M14: 0.91 | N14: 0.41
A15: 200 | B15: 1.05 | C15: 0.87 | D15: 0.5 | E15: 02:00:00 | F15: 300 | G15: 0.31 | H15: 0.31 | I15: 0.95 | J15: 00:03:00 | K15: 12 | L15: 1.26 | M15: 0.95 | N15: 0.31
A16: 210 | B16: 1.13 | C16: 0.9 | D16: 0.43 | E16: 02:10:00 | F16: 315 | G16: 0.34 | H16: 0.33 | I16: 0.94 | J16: 00:03:15 | K16: 13 | L16: 1.36 | M16: 0.98 | N16: 0.21
A17: 220 | B17: 1.22 | C17: 0.94 | D17: 0.34 | E17: 02:20:00 | F17: 330 | G17: 0.37 | H17: 0.36 | I17: 0.93 | J17: 00:03:30 | K17: 14 | L17: 1.47 | M17: 0.99 | N17: 0.1
A18: 230 | B18: 1.31 | C18: 0.97 | D18: 0.26 | E18: 02:30:00 | F18: 345 | G18: 0.39 | H18: 0.38 | I18: 0.92 | J18: 00:03:45 | K18: 15 | L18: 1.57 | M18: 1 | N18: 0
A19: 240 | B19: 1.4 | C19: 0.99 | D19: 0.17 | E19: 02:40:00 | F19: 400 | G19: 0.42 | H19: 0.41 | I19: 0.91 | J19: 00:04:00 | K19: 16 | L19: 1.68 | M19: 0.99 | N19: -0.11
A20: 250 | B20: 1.48 | C20: 1 | D20: 0.09 | E20: 02:50:00 | F20: 415 | G20: 0.45 | H20: 0.43 | I20: 0.9 | J20: 00:04:15 | K20: 17 | L20: 1.78 | M20: 0.98 | N20: -0.21
A21: 300 | B21: 1.57 | C21: 1 | D21: 0 | E21: 03:00:00 | F21: 430 | G21: 0.47 | H21: 0.45 | I21: 0.89 | J21: 00:04:30 | K21: 18 | L21: 1.88 | M21: 0.95 | N21: -0.3
A22: 310 | B22: 1.66 | C22: 1 | D22: -0.09 | E22: 03:10:00 | F22: 445 | G22: 0.5 | H22: 0.48 | I22: 0.88 | J22: 00:04:45 | K22: 19 | L22: 1.99 | M22: 0.91 | N22: -0.41
A23: 320 | B23: 1.75 | C23: 0.98 | D23: -0.18 | E23: 03:20:00 | F23: 500 | G23: 0.52 | H23: 0.5 | I23: 0.87 | J23: 00:05:00 | K23: 20 | L23: 2.09 | M23: 0.87 | N23: -0.5
A24: 330 | B24: 1.83 | C24: 0.97 | D24: -0.26 | E24: 03:30:00 | F24: 515 | G24: 0.55 | H24: 0.52 | I24: 0.85 | J24: 00:05:15 | K24: 21 | L24: 2.2 | M24: 0.81 | N24: -0.59
A25: 340 | B25: 1.92 | C25: 0.94 | D25: -0.34 | E25: 03:40:00 | F25: 530 | G25: 0.58 | H25: 0.55 | I25: 0.84 | J25: 00:05:30 | K25: 22 | L25: 2.3 | M25: 0.75 | N25: -0.67
A26: 350 | B26: 2.01 | C26: 0.91 | D26: -0.43 | E26: 03:50:00 | F26: 545 | G26: 0.6 | H26: 0.56 | I26: 0.83 | J26: 00:05:45 | K26: 23 | L26: 2.41 | M26: 0.67 | N26: -0.74
A27: 400 | B27: 2.09 | C27: 0.87 | D27: -0.5 | E27: 04:00:00 | F27: 600 | G27: 0.63 | H27: 0.59 | I27: 0.81 | J27: 00:06:00 | K27: 24 | L27: 2.51 | M27: 0.59 | N27: -0.81
A28: 410 | B28: 2.18 | C28: 0.82 | D28: -0.57 | E28: 04:10:00 | F28: 615 | G28: 0.65 | H28: 0.61 | I28: 0.8 | J28: 00:06:15 | K28: 25 | L28: 2.62 | M28: 0.5 | N28: -0.87
A29: 420 | B29: 2.27 | C29: 0.77 | D29: -0.64 | E29: 04:20:00 | F29: 630 | G29: 0.68 | H29: 0.63 | I29: 0.78 | J29: 00:06:30 | K29: 26 | L29: 2.72 | M29: 0.41 | N29: -0.91
A30: 430 | B30: 2.36 | C30: 0.7 | D30: -0.71 | E30: 04:30:00 | F30: 645 | G30: 0.71 | H30: 0.65 | I30: 0.76 | J30: 00:06:45 | K30: 27 | L30: 2.83 | M30: 0.31 | N30: -0.95
A31: 440 | B31: 2.44 | C31: 0.65 | D31: -0.76 | E31: 04:40:00 | F31: 700 | G31: 0.73 | H31: 0.67 | I31: 0.75 | J31: 00:07:00 | K31: 28 | L31: 2.93 | M31: 0.21 | N31: -0.98
A32: 450 | B32: 2.53 | C32: 0.57 | D32: -0.82 | E32: 04:50:00 | F32: 715 | G32: 0.76 | H32: 0.69 | I32: 0.72 | J32: 00:07:15 | K32: 29 | L32: 3.04 | M32: 0.1 | N32: -0.99
A33: 500 | B33: 2.62 | C33: 0.5 | D33: -0.87 | E33: 05:00:00 | F33: 730 | G33: 0.79 | H33: 0.71 | I33: 0.7 | J33: 00:07:30 | K33: 30 | L33: 3.14 | M33: 0 | N33: -1
A34: 510 | B34: 2.71 | C34: 0.42 | D34: -0.91 | E34: 05:10:00 | F34: 745 | G34: 0.81 | H34: 0.72 | I34: 0.69 | J34: 00:07:45 | K34: 31 | L34: 3.25 | M34: -0.11 | N34: -0.99
A35: 520 | B35: 2.79 | C35: 0.34 | D35: -0.94 | E35: 05:20:00 | F35: 800 | G35: 0.84 | H35: 0.74 | I35: 0.67 | J35: 00:08:00 | K35: 32 | L35: 3.35 | M35: -0.21 | N35: -0.98
A36: 530 | B36: 2.88 | C36: 0.26 | D36: -0.97 | E36: 05:30:00 | F36: 815 | G36: 0.86 | H36: 0.76 | I36: 0.65 | J36: 00:08:15 | K36: 33 | L36: 3.46 | M36: -0.31 | N36: -0.95
A37: 540 | B37: 2.97 | C37: 0.17 | D37: -0.99 | E37: 05:40:00 | F37: 830 | G37: 0.89 | H37: 0.78 | I37: 0.63 | J37: 00:08:30 | K37: 34 | L37: 3.56 | M37: -0.41 | N37: -0.91
A38: 550 | B38: 3.05 | C38: 0.09 | D38: -1 | E38: 05:50:00 | F38: 845 | G38: 0.92 | H38: 0.8 | I38: 0.61 | J38: 00:08:45 | K38: 35 | L38: 3.67 | M38: -0.5 | N38: -0.86
A39: 600 | B39: 3.14 | C39: 0 | D39: -1 | E39: 06:00:00 | F39: 900 | G39: 0.94 | H39: 0.81 | I39: 0.59 | J39: 00:09:00 | K39: 36 | L39: 3.77 | M39: -0.59 | N39: -0.81
A40: 610 | B40: 3.23 | C40: -0.09 | D40: -1 | E40: 06:10:00 | F40: 915 | G40: 0.97 | H40: 0.82 | I40: 0.57 | J40: 00:09:15 | K40: 37 | L40: 3.87 | M40: -0.67 | N40: -0.75
A41: 620 | B41: 3.32 | C41: -0.18 | D41: -0.98 | E41: 06:20:00 | F41: 930 | G41: 0.99 | H41: 0.84 | I41: 0.55 | J41: 00:09:30 | K41: 38 | L41: 3.98 | M41: -0.74 | N41: -0.67
A42: 630 | B42: 3.4 | C42: -0.26 | D42: -0.97 | E42: 06:30:00 | F42: 945 | G42: 1.02 | H42: 0.85 | I42: 0.52 | J42: 00:09:45 | K42: 39 | L42: 4.08 | M42: -0.81 | N42: -0.59
A43: 640 | B43: 3.49 | C43: -0.34 | D43: -0.94 | E43: 06:40:00 | F43: 1000 | G43: 1.05 | H43: 0.87 | I43: 0.5 | J43: 00:10:00 | K43: 40 | L43: 4.19 | M43: -0.87 | N43: -0.5
A44: 650 | B44: 3.58 | C44: -0.42 | D44: -0.91 | E44: 06:50:00 | F44: 1015 | G44: 1.07 | H44: 0.88 | I44: 0.48 | J44: 00:10:15 | K44: 41 | L44: 4.29 | M44: -0.91 | N44: -0.41
A45: 700 | B45: 3.67 | C45: -0.5 | D45: -0.86 | E45: 07:00:00 | F45: 1030 | G45: 1.1 | H45: 0.89 | I45: 0.45 | J45: 00:10:30 | K45: 42 | L45: 4.4 | M45: -0.95 | N45: -0.31
A46: 710 | B46: 3.75 | C46: -0.57 | D46: -0.82 | E46: 07:10:00 | F46: 1045 | G46: 1.13 | H46: 0.9 | I46: 0.43 | J46: 00:10:45 | K46: 43 | L46: 4.5 | M46: -0.98 | N46: -0.21
A47: 720 | B47: 3.84 | C47: -0.64 | D47: -0.77 | E47: 07:20:00 | F47: 1100 | G47: 1.15 | H47: 0.91 | I47: 0.41 | J47: 00:11:00 | K47: 44 | L47: 4.61 | M47: -0.99 | N47: -0.1
A48: 730 | B48: 3.93 | C48: -0.71 | D48: -0.7 | E48: 07:30:00 | F48: 1115 | G48: 1.18 | H48: 0.92 | I48: 0.38 | J48: 00:11:15 | K48: 45 | L48: 4.71 | M48: -1 | N48: 0
A49: 740 | B49: 4.01 | C49: -0.76 | D49: -0.65 | E49: 07:40:00 | F49: 1130 | G49: 1.2 | H49: 0.93 | I49: 0.36 | J49: 00:11:30 | K49: 46 | L49: 4.82 | M49: -0.99 | N49: 0.11
A50: 750 | B50: 4.1 | C50: -0.82 | D50: -0.57 | E50: 07:50:00 | F50: 1145 | G50: 1.23 | H50: 0.94 | I50: 0.33 | J50: 00:11:45 | K50: 47 | L50: 4.92 | M50: -0.98 | N50: 0.21
A51: 800 | B51: 4.19 | C51: -0.87 | D51: -0.5 | E51: 08:00:00 | F51: 1200 | G51: 1.26 | H51: 0.95 | I51: 0.31 | J51: 00:12:00 | K51: 48 | L51: 5.03 | M51: -0.95 | N51: 0.31
A52: 810 | B52: 4.28 | C52: -0.91 | D52: -0.42 | E52: 08:10:00 | F52: 1215 | G52: 1.28 | H52: 0.96 | I52: 0.29 | J52: 00:12:15 | K52: 49 | L52: 5.13 | M52: -0.91 | N52: 0.41
A53: 820 | B53: 4.36 | C53: -0.94 | D53: -0.35 | E53: 08:20:00 | F53: 1230 | G53: 1.31 | H53: 0.97 | I53: 0.26 | J53: 00:12:30 | K53: 50 | L53: 5.24 | M53: -0.86 | N53: 0.5
A54: 830 | B54: 4.45 | C54: -0.97 | D54: -0.26 | E54: 08:30:00 | F54: 1245 | G54: 1.34 | H54: 0.97 | I54: 0.23 | J54: 00:12:45 | K54: 51 | L54: 5.34 | M54: -0.81 | N54: 0.59
A55: 840 | B55: 4.54 | C55: -0.99 | D55: -0.17 | E55: 08:40:00 | F55: 1300 | G55: 1.36 | H55: 0.98 | I55: 0.21 | J55: 00:13:00 | K55: 52 | L55: 5.45 | M55: -0.74 | N55: 0.67
A56: 850 | B56: 4.63 | C56: -1 | D56: -0.08 | E56: 08:50:00 | F56: 1315 | G56: 1.39 | H56: 0.98 | I56: 0.18 | J56: 00:13:15 | K56: 53 | L56: 5.55 | M56: -0.67 | N56: 0.74
A57: 900 | B57: 4.71 | C57: -1 | D57: 0 | E57: 09:00:00 | F57: 1330 | G57: 1.41 | H57: 0.99 | I57: 0.16 | J57: 00:13:30 | K57: 54 | L57: 5.65 | M57: -0.59 | N57: 0.81
A58: 910 | B58: 4.8 | C58: -1 | D58: 0.09 | E58: 09:10:00 | F58: 1345 | G58: 1.44 | H58: 0.99 | I58: 0.13 | J58: 00:13:45 | K58: 55 | L58: 5.76 | M58: -0.5 | N58: 0.87
A59: 920 | B59: 4.89 | C59: -0.98 | D59: 0.18 | E59: 09:20:00 | F59: 1400 | G59: 1.47 | H59: 0.99 | I59: 0.1 | J59: 00:14:00 | K59: 56 | L59: 5.86 | M59: -0.41 | N59: 0.91
A60: 930 | B60: 4.97 | C60: -0.97 | D60: 0.25 | E60: 09:30:00 | F60: 1415 | G60: 1.49 | H60: 1 | I60: 0.08 | J60: 00:14:15 | K60: 57 | L60: 5.97 | M60: -0.31 | N60: 0.95
A61: 940 | B61: 5.06 | C61: -0.94 | D61: 0.34 | E61: 09:40:00 | F61: 1430 | G61: 1.52 | H61: 1 | I61: 0.05 | J61: 00:14:30 | K61: 58 | L61: 6.07 | M61: -0.21 | N61: 0.98
A62: 950 | B62: 5.15 | C62: -0.91 | D62: 0.42 | E62: 09:50:00 | F62: 1445 | G62: 1.54 | H62: 1 | I62: 0.03 | J62: 00:14:45 | K62: 59 | L62: 6.18 | M62: -0.1 | N62: 0.99
A63: 1000 | B63: 5.24 | C63: -0.86 | D63: 0.5 | E63: 10:00:00 | F63: 1500 | G63: 1.57 | H63: 1 | I63: 0 | J63: 00:15:00
A64: 1010 | B64: 5.32 | C64: -0.82 | D64: 0.57 | E64: 10:10:00 | F64: 1515 | G64: 1.6 | H64: 1 | I64: -0.03 | J64: 00:15:15
A65: 1020 | B65: 5.41 | C65: -0.77 | D65: 0.64 | E65: 10:20:00 | F65: 1530 | G65: 1.62 | H65: 1 | I65: -0.05 | J65: 00:15:30
A66: 1030 | B66: 5.5 | C66: -0.71 | D66: 0.71 | E66: 10:30:00 | F66: 1545 | G66: 1.65 | H66: 1 | I66: -0.08 | J66: 00:15:45
A67: 1040 | B67: 5.59 | C67: -0.64 | D67: 0.77 | E67: 10:40:00 | F67: 1600 | G67: 1.68 | H67: 0.99 | I67: -0.11 | J67: 00:16:00
A68: =HOUR($E68)*100+MINUTE($E68) -> 1050 | B68: 5.67 | C68: -0.58 | D68: 0.82 | E68: 10:50:00 | F68: =MINUTE($J68)*100+SECOND($J68) -> 1615 | G68: 1.7 | H68: 0.99 | I68: -0.13 | J68: 00:16:15
A69: 1100 | B69: 5.76 | C69: -0.5 | D69: 0.87 | E69: 11:00:00 | F69: 1630 | G69: 1.73 | H69: 0.99 | I69: -0.16 | J69: 00:16:30
A70: 1110 | B70: 5.85 | C70: -0.42 | D70: 0.91 | E70: 11:10:00 | F70: 1645 | G70: 1.75 | H70: 0.98 | I70: -0.18 | J70: 00:16:45
A71: 1120 | B71: 5.93 | C71: -0.35 | D71: 0.94 | E71: 11:20:00 | F71: 1700 | G71: 1.78 | H71: 0.98 | I71: -0.21 | J71: 00:17:00
A72: 1130 | B72: 6.02 | C72: -0.26 | D72: 0.97 | E72: 11:30:00 | F72: 1715 | G72: 1.81 | H72: 0.97 | I72: -0.24 | J72: 00:17:15
A73: 1140 | B73: 6.11 | C73: -0.17 | D73: 0.99 | E73: 11:40:00 | F73: 1730 | G73: 1.83 | H73: 0.97 | I73: -0.26 | J73: 00:17:30
A74: 1150 | B74: 6.2 | C74: -0.08 | D74: 1 | E74: 11:50:00 | F74: 1745 | G74: 1.86 | H74: 0.96 | I74: -0.29 | J74: 00:17:45
A75: 1200 | B75: 6.28 | C75: 0 | D75: 1 | E75: 12:00:00 | F75: 1800 | G75: 1.88 | H75: 0.95 | I75: -0.3 | J75: 00:18:00
A76: 1210 | B76: 6.37 | C76: 0.09 | D76: 1 | E76: 12:10:00 | F76: 1815 | G76: 1.91 | H76: 0.94 | I76: -0.33 | J76: 00:18:15
A77: 1220 | B77: 6.46 | C77: 0.18 | D77: 0.98 | E77: 12:20:00 | F77: 1830 | G77: 1.94 | H77: 0.93 | I77: -0.36 | J77: 00:18:30
A78: 1230 | B78: 6.54 | C78: 0.25 | D78: 0.97 | E78: 12:30:00 | F78: 1845 | G78: 1.96 | H78: 0.93 | I78: -0.38 | J78: 00:18:45
A79: 1240 | B79: 6.63 | C79: 0.34 | D79: 0.94 | E79: 12:40:00 | F79: 1900 | G79: 1.99 | H79: 0.91 | I79: -0.41 | J79: 00:19:00
A80: 1250 | B80: 6.72 | C80: 0.42 | D80: 0.91 | E80: 12:50:00 | F80: 1915 | G80: 2.02 | H80: 0.9 | I80: -0.43 | J80: 00:19:15
A81: 1300 | B81: 6.81 | C81: 0.5 | D81: 0.86 | E81: 13:00:00 | F81: 1930 | G81: 2.04 | H81: 0.89 | I81: -0.45 | J81: 00:19:30
A82: 1310 | B82: 6.89 | C82: 0.57 | D82: 0.82 | E82: 13:10:00 | F82: 1945 | G82: 2.07 | H82: 0.88 | I82: -0.48 | J82: 00:19:45
A83: 1320 | B83: 6.98 | C83: 0.64 | D83: 0.77 | E83: 13:20:00 | F83: 2000 | G83: 2.09 | H83: 0.87 | I83: -0.5 | J83: 00:20:00
A84: 1330 | B84: 7.07 | C84: 0.71 | D84: 0.71 | E84: 13:30:00 | F84: 2015 | G84: 2.12 | H84: 0.85 | I84: -0.52 | J84: 00:20:15
A85: 1340 | B85: 7.16 | C85: 0.77 | D85: 0.64 | E85: 13:40:00 | F85: 2030 | G85: 2.15 | H85: 0.84 | I85: -0.55 | J85: 00:20:30
A86: 1350 | B86: 7.24 | C86: 0.82 | D86: 0.58 | E86: 13:50:00 | F86: 2045 | G86: 2.17 | H86: 0.83 | I86: -0.56 | J86: 00:20:45
A87: 1400 | B87: 7.33 | C87: 0.87 | D87: 0.5 | E87: 14:00:00 | F87: 2100 | G87: 2.2 | H87: 0.81 | I87: -0.59 | J87: 00:21:00
A88: 1410 | B88: 7.42 | C88: 0.91 | D88: 0.42 | E88: 14:10:00 | F88: 2115 | G88: 2.23 | H88: 0.79 | I88: -0.61 | J88: 00:21:15
A89: 1420 | B89: 7.5 | C89: 0.94 | D89: 0.35 | E89: 14:20:00 | F89: 2130 | G89: 2.25 | H89: 0.78 | I89: -0.63 | J89: 00:21:30
A90: 1430 | B90: 7.59 | C90: 0.97 | D90: 0.26 | E90: 14:30:00 | F90: 2145 | G90: 2.28 | H90: 0.76 | I90: -0.65 | J90: 00:21:45
A91: 1440 | B91: 7.68 | C91: 0.98 | D91: 0.17 | E91: 14:40:00 | F91: 2200 | G91: 2.3 | H91: 0.75 | I91: -0.67 | J91: 00:22:00
A92: 1450 | B92: 7.77 | C92: 1 | D92: 0.08 | E92: 14:50:00 | F92: 2215 | G92: 2.33 | H92: 0.73 | I92: -0.69 | J92: 00:22:15
A93: 1500 | B93: 7.85 | C93: 1 | D93: 0 | E93: 15:00:00 | F93: 2230 | G93: 2.36 | H93: 0.7 | I93: -0.71 | J93: 00:22:30
A94: 1510 | B94: 7.94 | C94: 1 | D94: -0.09 | E94: 15:10:00 | F94: 2245 | G94: 2.38 | H94: 0.69 | I94: -0.72 | J94: 00:22:45
A95: 1520 | B95: 8.03 | C95: 0.98 | D95: -0.18 | E95: 15:20:00 | F95: 2300 | G95: 2.41 | H95: 0.67 | I95: -0.74 | J95: 00:23:00
A96: 1530 | B96: 8.12 | C96: 0.96 | D96: -0.26 | E96: 15:30:00 | F96: 2315 | G96: 2.43 | H96: 0.65 | I96: -0.76 | J96: 00:23:15
A97: 1540 | B97: 8.2 | C97: 0.94 | D97: -0.34 | E97: 15:40:00 | F97: 2330 | G97: 2.46 | H97: 0.63 | I97: -0.78 | J97: 00:23:30
A98: 1550 | B98: 8.29 | C98: 0.91 | D98: -0.42 | E98: 15:50:00 | F98: 2345 | G98: 2.49 | H98: 0.61 | I98: -0.8 | J98: 00:23:45
A99: 1600 | B99: 8.38 | C99: 0.86 | D99: -0.5 | E99: 16:00:00 | F99: 2400 | G99: 2.51 | H99: 0.59 | I99: -0.81 | J99: 00:24:00
A100: 1610 | B100: 8.46 | C100: 0.82 | D100: -0.57 | E100: 16:10:00 | F100: 2415 | G100: 2.54 | H100: 0.57 | I100: -0.82 | J100: 00:24:15
A101: 1620 | B101: 8.55 | C101: 0.77 | D101: -0.64 | E101: 16:20:00 | F101: 2430 | G101: 2.57 | H101: 0.54 | I101: -0.84 | J101: 00:24:30
A102: 1630 | B102: 8.64 | C102: 0.71 | D102: -0.71 | E102: 16:30:00 | F102: 2445 | G102: 2.59 | H102: 0.52 | I102: -0.85 | J102: 00:24:45
A103: 1640 | B103: 8.73 | C103: 0.64 | D103: -0.77 | E103: 16:40:00 | F103: 2500 | G103: 2.62 | H103: 0.5 | I103: -0.87 | J103: 00:25:00
A104: 1650 | B104: 8.81 | C104: 0.58 | D104: -0.82 | E104: 16:50:00 | F104: 2515 | G104: 2.64 | H104: 0.48 | I104: -0.88 | J104: 00:25:15
A105: 1700 | B105: 8.9 | C105: 0.5 | D105: -0.87 | E105: 17:00:00 | F105: 2530 | G105: 2.67 | H105: 0.45 | I105: -0.89 | J105: 00:25:30
A106: 1710 | B106: 8.99 | C106: 0.42 | D106: -0.91 | E106: 17:10:00 | F106: 2545 | G106: 2.7 | H106: 0.43 | I106: -0.9 | J106: 00:25:45
A107: 1720 | B107: 9.08 | C107: 0.34 | D107: -0.94 | E107: 17:20:00 | F107: 2600 | G107: 2.72 | H107: 0.41 | I107: -0.91 | J107: 00:26:00
A108: 1730 | B108: 9.16 | C108: 0.26 | D108: -0.97 | E108: 17:30:00 | F108: 2615 | G108: 2.75 | H108: 0.38 | I108: -0.92 | J108: 00:26:15
A109: 1740 | B109: 9.25 | C109: 0.17 | D109: -0.98 | E109: 17:40:00 | F109: 2630 | G109: 2.78 | H109: 0.35 | I109: -0.94 | J109: 00:26:30
A110: 1750 | B110: 9.34 | C110: 0.08 | D110: -1 | E110: 17:50:00 | F110: 2645 | G110: 2.8 | H110: 0.33 | I110: -0.94 | J110: 00:26:45
A111: 1800 | B111: 9.42 | C111: 0 | D111: -1 | E111: 18:00:00 | F111: 2700 | G111: 2.83 | H111: 0.31 | I111: -0.95 | J111: 00:27:00
A112: 1810 | B112: 9.51 | C112: -0.09 | D112: -1 | E112: 18:10:00 | F112: 2715 | G112: 2.85 | H112: 0.29 | I112: -0.96 | J112: 00:27:15
A113: 1820 | B113: 9.6 | C113: -0.17 | D113: -0.98 | E113: 18:20:00 | F113: 2730 | G113: 2.88 | H113: 0.26 | I113: -0.97 | J113: 00:27:30
A114: 1830 | B114: 9.69 | C114: -0.26 | D114: -0.97 | E114: 18:30:00 | F114: 2745 | G114: 2.91 | H114: 0.23 | I114: -0.97 | J114: 00:27:45
A115: 1840 | B115: 9.77 | C115: -0.34 | D115: -0.94 | E115: 18:40:00 | F115: 2800 | G115: 2.93 | H115: 0.21 | I115: -0.98 | J115: 00:28:00
A116: 1850 | B116: 9.86 | C116: -0.42 | D116: -0.91 | E116: 18:50:00 | F116: 2815 | G116: 2.96 | H116: 0.18 | I116: -0.98 | J116: 00:28:15
A117: 1900 | B117: 9.95 | C117: -0.5 | D117: -0.87 | E117: 19:00:00 | F117: 2830 | G117: 2.98 | H117: 0.16 | I117: -0.99 | J117: 00:28:30
A118: 1910 | B118: 10.04 | C118: -0.58 | D118: -0.82 | E118: 19:10:00 | F118: 2845 | G118: 3.01 | H118: 0.13 | I118: -0.99 | J118: 00:28:45
A119: 1920 | B119: 10.12 | C119: -0.64 | D119: -0.77 | E119: 19:20:00 | F119: 2900 | G119: 3.04 | H119: 0.1 | I119: -0.99 | J119: 00:29:00
A120: 1930 | B120: 10.21 | C120: -0.71 | D120: -0.71 | E120: 19:30:00 | F120: 2915 | G120: 3.06 | H120: 0.08 | I120: -1 | J120: 00:29:15
A121: 1940 | B121: 10.3 | C121: -0.77 | D121: -0.64 | E121: 19:40:00 | F121: 2930 | G121: 3.09 | H121: 0.05 | I121: -1 | J121: 00:29:30
A122: 1950 | B122: 10.38 | C122: -0.82 | D122: -0.58 | E122: 19:50:00 | F122: 2945 | G122: 3.12 | H122: 0.02 | I122: -1 | J122: 00:29:45
A123: 2000 | B123: 10.47 | C123: -0.87 | D123: -0.5 | E123: 20:00:00 | F123: 3000 | G123: 3.14 | H123: 0 | I123: -1 | J123: 00:30:00
A124: 2010 | B124: 10.56 | C124: -0.91 | D124: -0.42 | E124: 20:10:00 | F124: 3015 | G124: 3.17 | H124: -0.03 | I124: -1 | J124: 00:30:15
A125: 2020 | B125: 10.65 | C125: -0.94 | D125: -0.34 | E125: 20:20:00 | F125: 3030 | G125: 3.19 | H125: -0.05 | I125: -1 | J125: 00:30:30
A126: 2030 | B126: 10.73 | C126: -0.96 | D126: -0.26 | E126: 20:30:00 | F126: 3045 | G126: 3.22 | H126: -0.08 | I126: -1 | J126: 00:30:45
A127: 2040 | B127: 10.82 | C127: -0.98 | D127: -0.17 | E127: 20:40:00 | F127: 3100 | G127: 3.25 | H127: -0.11 | I127: -0.99 | J127: 00:31:00
A128: 2050 | B128: 10.91 | C128: -1 | D128: -0.09 | E128: 20:50:00 | F128: 3115 | G128: 3.27 | H128: -0.13 | I128: -0.99 | J128: 00:31:15
A129: 2100 | B129: 11 | C129: -1 | D129: 0 | E129: 21:00:00 | F129: 3130 | G129: 3.3 | H129: -0.16 | I129: -0.99 | J129: 00:31:30
A130: 2110 | B130: 11.08 | C130: -1 | D130: 0.08 | E130: 21:10:00 | F130: 3145 | G130: 3.32 | H130: -0.18 | I130: -0.98 | J130: 00:31:45
A131: 2120 | B131: 11.17 | C131: -0.98 | D131: 0.17 | E131: 21:20:00 | F131: 3200 | G131: 3.35 | H131: -0.21 | I131: -0.98 | J131: 00:32:00
A132: =HOUR($E132)*100+MINUTE($E132) -> 2130 | B132: 11.26 | C132: -0.97 | D132: 0.26 | E132: 21:30:00 | F132: =MINUTE($J132)*100+SECOND($J132) -> 3215 | G132: 3.38 | H132: -0.24 | I132: -0.97 | J132: 00:32:15
A133: 2140 | B133: 11.34 | C133: -0.94 | D133: 0.34 | E133: 21:40:00 | F133: 3230 | G133: 3.4 | H133: -0.26 | I133: -0.97 | J133: 00:32:30
A134: 2150 | B134: 11.43 | C134: -0.91 | D134: 0.42 | E134: 21:50:00 | F134: 3245 | G134: 3.43 | H134: -0.28 | I134: -0.96 | J134: 00:32:45
A135: 2200 | B135: 11.52 | C135: -0.87 | D135: 0.5 | E135: 22:00:00 | F135: 3300 | G135: 3.46 | H135: -0.31 | I135: -0.95 | J135: 00:33:00
A136: 2210 | B136: 11.61 | C136: -0.82 | D136: 0.58 | E136: 22:10:00 | F136: 3315 | G136: 3.48 | H136: -0.33 | I136: -0.94 | J136: 00:33:15
A137: 2220 | B137: 11.69 | C137: -0.77 | D137: 0.64 | E137: 22:20:00 | F137: 3330 | G137: 3.51 | H137: -0.36 | I137: -0.93 | J137: 00:33:30
A138: 2230 | B138: 11.78 | C138: -0.71 | D138: 0.71 | E138: 22:30:00 | F138: 3345 | G138: 3.53 | H138: -0.38 | I138: -0.93 | J138: 00:33:45
A139: 2240 | B139: 11.87 | C139: -0.64 | D139: 0.77 | E139: 22:40:00 | F139: 3400 | G139: 3.56 | H139: -0.41 | I139: -0.91 | J139: 00:34:00
A140: 2250 | B140: 11.96 | C140: -0.57 | D140: 0.82 | E140: 22:50:00 | F140: 3415 | G140: 3.59 | H140: -0.43 | I140: -0.9 | J140: 00:34:15
A141: 2300 | B141: 12.04 | C141: -0.5 | D141: 0.86 | E141: 23:00:00 | F141: 3430 | G141: 3.61 | H141: -0.45 | I141: -0.89 | J141: 00:34:30
A142: 2310 | B142: 12.13 | C142: -0.42 | D142: 0.91 | E142: 23:10:00 | F142: 3445 | G142: 3.64 | H142: -0.48 | I142: -0.88 | J142: 00:34:45
A143: 2320 | B143: 12.22 | C143: -0.34 | D143: 0.94 | E143: 23:20:00 | F143: 3500 | G143: 3.67 | H143: -0.5 | I143: -0.86 | J143: 00:35:00
A144: 2330 | B144: 12.3 | C144: -0.26 | D144: 0.96 | E144: 23:30:00 | F144: 3515 | G144: 3.69 | H144: -0.52 | I144: -0.85 | J144: 00:35:15
A145: 2340 | B145: 12.39 | C145: -0.18 | D145: 0.98 | E145: 23:40:00 | F145: 3530 | G145: 3.72 | H145: -0.55 | I145: -0.84 | J145: 00:35:30
A146: 2350 | B146: 12.48 | C146: -0.09 | D146: 1 | E146: 23:50:00 | F146: 3545 | G146: 3.74 | H146: -0.56 | I146: -0.83 | J146: 00:35:45
F147: 3600 | G147: 3.77 | H147: -0.59 | I147: -0.81 | J147: 00:36:00
F148: 3615 | G148: 3.8 | H148: -0.61 | I148: -0.79 | J148: 00:36:15
F149: 3630 | G149: 3.82 | H149: -0.63 | I149: -0.78 | J149: 00:36:30
F150: 3645 | G150: 3.85 | H150: -0.65 | I150: -0.76 | J150: 00:36:45
F151: 3700 | G151: 3.87 | H151: -0.67 | I151: -0.75 | J151: 00:37:00
F152: 3715 | G152: 3.9 | H152: -0.69 | I152: -0.73 | J152: 00:37:15
F153: 3730 | G153: 3.93 | H153: -0.71 | I153: -0.7 | J153: 00:37:30
F154: 3745 | G154: 3.95 | H154: -0.72 | I154: -0.69 | J154: 00:37:45
F155: 3800 | G155: 3.98 | H155: -0.74 | I155: -0.67 | J155: 00:38:00
F156: 3815 | G156: 4.01 | H156: -0.76 | I156: -0.65 | J156: 00:38:15
F157: 3830 | G157: 4.03 | H157: -0.78 | I157: -0.63 | J157: 00:38:30
F158: 3845 | G158: 4.06 | H158: -0.79 | I158: -0.61 | J158: 00:38:45
F159: 3900 | G159: 4.08 | H159: -0.81 | I159: -0.59 | J159: 00:39:00
F160: 3915 | G160: 4.11 | H160: -0.82 | I160: -0.57 | J160: 00:39:15
F161: 3930 | G161: 4.14 | H161: -0.84 | I161: -0.54 | J161: 00:39:30
F162: 3945 | G162: 4.16 | H162: -0.85 | I162: -0.52 | J162: 00:39:45
F163: 4000 | G163: 4.19 | H163: -0.87 | I163: -0.5 | J163: 00:40:00
F164: 4015 | G164: 4.21 | H164: -0.88 | I164: -0.48 | J164: 00:40:15
F165: 4030 | G165: 4.24 | H165: -0.89 | I165: -0.46 | J165: 00:40:30
F166: 4045 | G166: 4.27 | H166: -0.9 | I166: -0.43 | J166: 00:40:45
F167: 4100 | G167: 4.29 | H167: -0.91 | I167: -0.41 | J167: 00:41:00
F168: 4115 | G168: 4.32 | H168: -0.92 | I168: -0.38 | J168: 00:41:15
F169: 4130 | G169: 4.35 | H169: -0.94 | I169: -0.35 | J169: 00:41:30
F170: 4145 | G170: 4.37 | H170: -0.94 | I170: -0.34 | J170: 00:41:45
F171: 4200 | G171: 4.4 | H171: -0.95 | I171: -0.31 | J171: 00:42:00
F172: 4215 | G172: 4.42 | H172: -0.96 | I172: -0.29 | J172: 00:42:15
F173: 4230 | G173: 4.45 | H173: -0.97 | I173: -0.26 | J173: 00:42:30
F174: 4245 | G174: 4.48 | H174: -0.97 | I174: -0.23 | J174: 00:42:45
F175: 4300 | G175: 4.5 | H175: -0.98 | I175: -0.21 | J175: 00:43:00
F176: 4315 | G176: 4.53 | H176: -0.98 | I176: -0.18 | J176: 00:43:15
F177: 4330 | G177: 4.56 | H177: -0.99 | I177: -0.15 | J177: 00:43:30
F178: 4345 | G178: 4.58 | H178: -0.99 | I178: -0.13 | J178: 00:43:45
F179: 4400 | G179: 4.61 | H179: -0.99 | I179: -0.1 | J179: 00:44:00
F180: 4415 | G180: 4.63 | H180: -1 | I180: -0.08 | J180: 00:44:15
F181: 4430 | G181: 4.66 | H181: -1 | I181: -0.05 | J181: 00:44:30
F182: 4445 | G182: 4.69 | H182: -1 | I182: -0.02 | J182: 00:44:45
F183: 4500 | G183: 4.71 | H183: -1 | I183: 0 | J183: 00:45:00
F184: 4515 | G184: 4.74 | H184: -1 | I184: 0.03 | J184: 00:45:15
F185: 4530 | G185: 4.76 | H185: -1 | I185: 0.05 | J185: 00:45:30
F186: 4545 | G186: 4.79 | H186: -1 | I186: 0.08 | J186: 00:45:45
F187: 4600 | G187: 4.82 | H187: -0.99 | I187: 0.11 | J187: 00:46:00
F188: 4615 | G188: 4.84 | H188: -0.99 | I188: 0.13 | J188: 00:46:15
F189: 4630 | G189: 4.87 | H189: -0.99 | I189: 0.16 | J189: 00:46:30
F190: 4645 | G190: 4.9 | H190: -0.98 | I190: 0.19 | J190: 00:46:45
F191: 4700 | G191: 4.92 | H191: -0.98 | I191: 0.21 | J191: 00:47:00
F192: 4715 | G192: 4.95 | H192: -0.97 | I192: 0.24 | J192: 00:47:15
F193: 4730 | G193: 4.97 | H193: -0.97 | I193: 0.25 | J193: 00:47:30
F194: 4745 | G194: 5 | H194: -0.96 | I194: 0.28 | J194: 00:47:45
F195: 4800 | G195: 5.03 | H195: -0.95 | I195: 0.31 | J195: 00:48:00
F196: =MINUTE($J196)*100+SECOND($J196) -> 4815 | G196: 5.05 | H196: -0.94 | I196: 0.33 | J196: 00:48:15
F197: 4830 | G197: 5.08 | H197: -0.93 | I197: 0.36 | J197: 00:48:30
F198: 4845 | G198: 5.11 | H198: -0.92 | I198: 0.39 | J198: 00:48:45
F199: 4900 | G199: 5.13 | H199: -0.91 | I199: 0.41 | J199: 00:49:00
F200: 4915 | G200: 5.16 | H200: -0.9 | I200: 0.43 | J200: 00:49:15
F201: 4930 | G201: 5.18 | H201: -0.89 | I201: 0.45 | J201: 00:49:30
... 41 more rows

Sheet Idiomas
A1: English | B1: Español | C1: Français | D1: Català | E1: Euskara | F1: Galego | G1: Italiano | H1: Português | I1: Deutsche
A2: City | B2: Ciudad | C2: Ville | D2: Ciutat | E2: Hiria | F2: Cidade | G2: Città | H2: Cidade | I2: Stadt
A3: Country | B3: País | C3: Pays | D3: País | E3: Herrialdea | F3: País | G3: Nazione | H3: País | I3: Land
A4: GMT | B4: GMT | C4: GMT | D4: GMT | E4: GMT | F4: GMT | G4: GMT | H4: GMT | I4: GMT
A5: Clock # | B5: Reloj Nº | C5: L'horloge # | D5: Rellotge # | E5: Erlojua # | F5: Reloxo # | G5: Orologio # | H5: Relógio # | I5: Uhr #
A6: Language | B6: Idioma | C6: Langue | D6: Llenguatge | E6: Hizkuntza | F6: Lingua | G6: Lingua | H6: Língua | I6: Sprache
A7: WORLD CLOCKS Version 3.6 | B7: RELOJES MUNDIALES Versión 3.6 | C7: HORLOGES DU MONDE Version 3.6 | D7: RELLOTGES MUNDIALS Versió 3.6 | E7: MUNDUKO ERLOUAK 3.6 bertsioa | F7: RELOXOS MUNDIAIS Versión 3.6 | G7: OROLOGI MONDIALI Versione 3.6 | H7: RELÓGIOS MUNDIAIS versão 3.6 | I7: WELTUHREN Version 3.6
A8: Author | B8: Autor | C8: Auteur | D8: Autor | E8: Egilea | F8: Autor | G8: Autore | H8: Autor | I8: Autor
A9: Thanks to | B9: Gracias a | C9: Grâce à | D9: Gràcies a | E9: Eskerrak | F9: Grazas a | G9: Grazie a | H9: Graças a | I9: Dank an
A10: WORLD CLOCKS HELP: | B10: RELOJES MUNDIALES AYUDA: | C10: AIDE DES HORLOGES DU MONDE : | D10: AJUDA ELS RELOJELLS MUNDIALS: | E10: MUNDUKO ERLOGIAK LAGUNTZA: | F10: AXUDA DO RELOXO MUNDIAL: | G10: AIUTO OROLOGI MONDIALI: | H10: AJUDA DO RELÓGIO MUNDIAL: | I10: WELTUHREN HILFEN:
A11: Click on the big clock: Stop/Start clocks. | B11: Clic en el reloj grande: Para/Arranca relojes. | C11: Cliquez sur la grande horloge: Arrêter/Démarrer horloges. | D11: Clic al rellotge gran: Per/Arrenca rellotges. | E11: Egin klik erloju handian: Gelditu/Hasi erlojuak. | F11: Fai clic no reloxo grande: Deter/Iniciar reloxos. | G11: Fare clic sull'orologio grande: Stop/Avvia orologi. | H11: Clique no relógio grande: relógios stop/start. | I11: Klicken Sie auf die große Uhr: Stopp/Start-Uhren.
A12: To create a new city on the map: | B12: Para crear una nueva ciudad en el mapa: | C12: Pour créer une nouvelle ville sur la carte : | D12: Per crear una ciutat nova al mapa: | E12: Mapan hiri berri bat sortzeko: | F12: Para crear unha nova cidade no mapa: | G12: Per creare una nuova città sulla mappa: | H12: Para criar uma nova cidade no mapa: | I12: So erstellen Sie eine neue Stadt auf der Karte:
A13: 1) Stop the clocks | B13: 1) Parar los relojes | C13: 1) Arrêtez les horloges | D13: 1) Atureu els rellotges | E13: 1) Erlojuak gelditu | F13: 1) Parar os reloxos | G13: 1) Ferma gli orologi | H13: 1) Pare os relógios | I13: 1) Stoppen Sie die Uhren
A14: 2) Right mouse button on the map | B14: 2) Botón derecho del ratón sobre el mapa | C14: 2) Bouton droit de la souris sur la carte | D14: 2) Botó dret del ratolí al mapa | E14: 2) Saguaren eskuineko botoia mapan | F14: 2) Botón dereito do rato no mapa | G14: 2) Tasto destro del mouse sulla mappa | H14: 2) Botão direito do mouse no mapa | I14: 2) Rechte Maustaste auf der Karte
A15: 3) Select a city or country on the 'Relojes' sheet | B15: 3) Seleccionar una ciudad o pais en la hoja 'Relojes' | C15: 3) Sélectionnez une ville ou un pays sur la feuille 'Relojes' | D15: 3) Seleccioneu una ciutat o país al full de 'Relojes' | E15: 3) Hautatu hiri edo herrialde bat 'Relojes' orrian | F15: 3) Seleccione unha cidade ou país na folla 'Reloxes' | G15: 3) Seleziona una città o un paese sul foglio 'Relojes' | H15: 3) Selecione uma cidade ou país na planilha 'Relojes' | I15: 3) Wählen Sie eine Stadt oder ein Land auf dem Blatt 'Relojes' aus
A16: Hour | B16: Hora | C16: Heure | D16: Hores | E16: Ordua | F16: Hora | G16: Ora | H16: Hora | I16: Stunde
A17: Date | B17: Fecha | C17: Date | D17: Data | E17: Data | F17: Data | G17: Data | H17: Encontro | I17: Datum
A18: GMT Hour | B18: Hora GMT | C18: Heure GMT | D18: Hora GMT | E18: GMT ordua | F18: Hora GMT | G18: Ora GMT | H18: Hora GMT | I18: GMT-Stunde
A19: Hours hand: | B19: Saeta de las horas: | C19: Aiguille des heures : | D19: Agulla de les hores: | E19: Orduen eskua: | F19: Man de horas: | G19: Lancetta delle ore: | H19: Ponteiro de horas: | I19: Stundenzeiger:
A20: Minutes hand: | B20: Saeta de las minutos: | C20: Aiguille des minutes : | D20: Man dels minuts: | E20: Minutu eskua: | F20: Manexo de minutos: | G20: Lancetta dei minuti: | H20: Mão dos minutos: | I20: Minutenzeiger:
A21: Seconds hand: | B21: Saeta de las segundos: | C21: Aiguille des secondes : | D21: Man dels segons: | E21: Segundoen eskua: | F21: Agulla dos segundos: | G21: Lancetta dei secondi: | H21: Mão dos segundos: | I21: Sekundenzeiger:
A22: Cities | B22: Ciudades | C22: Villes | D22: Ciutats | E22: Hiriak | F22: Cidades | G22: Città | H22: Cidades | I22: Städte
A23: Countries | B23: Países | C23: Des pays | D23: Països | E23: Herrialdeak | F23: Países | G23: Paesi | H23: Países | I23: Länder
A24: City # | B24: Núm. Ciudad | C24: Ville # | D24: Ciutat # | E24: Hiria # | F24: Cidade # | G24: Città # | H24: Cidade # | I24: Stadt #
A25: Latitude | B25: Latitud | C25: Latitude | D25: Latitud | E25: Latitudea | F25: Latitude | G25: Latitudine | H25: Latitude | I25: Breite
A26: Longitude | B26: Longitud | C26: Longitude | D26: Longitud | E26: Luzera | F26: Lonxitude | G26: Longitudine | H26: Longitude | I26: Längengrad
A27: Decimal latitude | B27: Latitud decimal | C27: Latitude décimale | D27: Latitud decimal | E27: Latitude hamartarra | F27: Latitude decimal | G27: latitudine decimale | H27: Latitude decimal | I27: Dezimaler Breitengrad
A28: Decimal longitude | B28: Longitud decimal | C28: Longitude décimale | D28: Longitud decimal | E28: Longitude hamartarra | F28: Lonxitude decimal | G28: Longitudine decimale | H28: Longitude decimal | I28: Dezimaler Längengrad
A29: Minute | B29: Minuto | C29: Minute | D29: Minut | E29: Minutua | F29: Minuto | G29: Minuto | H29: Minuto | I29: Minute
A30: Province | B30: Provincia | C30: Province | D30: Província | E30: Probintzia | F30: Provincia | G30: Provincia | H30: Província | I30: Provinz
A31: UTC | B31: UTC | C31: UTC | D31: UTC | E31: UTC | F31: UTC | G31: UTC | H31: UTC | I31: UTC
A32: Day | B32: Día | C32: Jour | D32: Dia | E32: Eguna | F32: Día | G32: Giorno | H32: Dia | I32: Tag
A33: Hour Minute | B33: Hora Minuto | C33: Heure Minute | D33: Hora Minut | E33: Ordua Minutua | F33: Hora Minuto | G33: Ora Minuto | H33: Hora minuto | I33: Stunde Minute
A34: Hours radians | B34: Radianes Horas | C34: Heures en radians | D34: Hores radians | E34: Orduak radianak | F34: Horas radiáns | G34: Ore radianti | H34: Horas radianos | I34: Stunden im Bogenmaß
A35: Hours Sine | B35: Seno Horas | C35: Heures sinus | D35: Hores Sine | E35: Orduak Sine | F35: Horas Sine | G35: Ore Sine | H35: Horas Seno | I35: Stunden Sinus
A36: Hours Cosine | B36: Coseno Horas | C36: Heures Cosinus | D36: Hores cosinus | E36: Orduak kosinua | F36: Horas Coseno | G36: Ore Coseno | H36: Horas Coseno | I36: Stunden Cosinus
A37: hh:mm | B37: hh:mm | C37: hh:mm | D37: hh:mm | E37: hh:mm | F37: hh:mm | G37: hh:mm | H37: hh:mm | I37: hh:mm
A38: Minute Second | B38: Minuto Segundo | C38: Minute seconde | D38: Minut segon | E38: Minutua Bigarrena | F38: Minuto Segundo | G38: Minuto Secondo | H38: Segundo minuto | I38: Minute Sekunde
A39: Minutes radians | B39: Radianes Minutos | C39: Minutes radians | D39: Minuts radians | E39: Minutu radianak | F39: Minutos radiáns | G39: Minuti radianti | H39: Radianos de minutos | I39: Minuten im Bogenmaß
A40: Minutes Sine | B40: Seno Minutos | C40: Minutes sinus | D40: Minuts Sine | E40: Minutu Sine | F40: Minutos Sine | G40: Minuti seno | H40: Minutos Seno | I40: Minuten Sinus
A41: Minutes Cosine | B41: Coseno Minutos | C41: Minutes Cosinus | D41: Minuts cosinus | E41: Minutu kosinua | F41: Minutos Coseno | G41: Minuti Coseno | H41: Minutos Cosseno | I41: Minuten Cosinus
A42: mm:ss | B42: mm:ss | C42: mm:ss | D42: mm:ss | E42: mm:ss | F42: mm:ss | G42: mm:ss | H42: mm:ss | I42: mm:ss
A43: Seconds | B43: Segundos | C43: Secondes | D43: Segons | E43: Segundoak | F43: Segundos | G43: Secondi | H43: Segundos | I43: Sekunden
A44: Radians Seconds | B44: Radianes Segundos | C44: Radians secondes | D44: Radians segons | E44: Radianak segundoak | F44: Radiáns Segundos | G44: Radianti secondi | H44: Radianos segundos | I44: Bogenmaß Sekunden
A45: Seconds Sine | B45: Seno Segundos | C45: Secondes sinus | D45: Segons Sine | E45: Segundoak Sine | F45: Segundos Sine | G45: Secondi seno | H45: Segundos Seno | I45: Sekunden Sinus
A46: Seconds Cosine | B46: Coseno Segundos | C46: Cosinus des secondes | D46: Cosinus segons | E46: Segundo kosinua | F46: Segundos coseno | G46: Secondi coseno | H46: Cosseno de segundos | I46: Sekunden Kosinus
A47: Web Services | B47: Servicios Web | C47: Services Web | D47: Serveis web | E47: Web Zerbitzuak | F47: Servizos web | G47: Servizi web | H47: Serviços web | I47: Internetdienste
A48: Mouse over map | B48: Ratón sobre mapa | C48: Survolez la carte | D48: Ratolí sobre el mapa | E48: Sagua pasa | F48: Pasa o rato sobre | G48: Passa il mouse | H48: Mouse sobre o mapa | I48: Maus über Karte
A49: en | B49: es | C49: fr | D49: ca | E49: eu | F49: gl | G49: it | H49: pt | I49: de
A50: See the cities | B50: Ver las ciudades | C50: Voir les villes | D50: Veure les ciutats | E50: Ikusi hiriak | F50: Ver as cidades | G50: Vedi le città | H50: Veja as cidades | I50: Sehen Sie die Städte
A51: See the clocks | B51: Ver los relojes | C51: Voir les horloges | D51: Veure els rellotges | E51: Ikus erlojuak | F51: Ver os reloxos | G51: Vedere gli orologi | H51: Veja os relógios | I51: Siehe die Uhren
A52: The destination file exists | B52: El archivo de destino existe | C52: Le fichier de destination existe | D52: El fitxer de destinació existeix | E52: Helmuga fitxategia badago | F52: O ficheiro de destino existe | G52: Il file di destinazione esiste | H52: O arquivo de destino existe | I52: Die Zieldatei existiert
A53: Do you want to overwrite the existing file? | B53: ¿Desea sobrescribir el archivo existente? | C53: Voulez-vous écraser le fichier existant ? | D53: Voleu sobreescriure el fitxer existent? | E53: Lehendik dagoen fitxategia gainidatzi nahi duzu? | F53: Queres sobrescribir o ficheiro existente? | G53: Vuoi sovrascrivere il file esistente? | H53: Deseja substituir o arquivo existente? | I53: Möchten Sie die vorhandene Datei überschreiben?
A54: World map | B54: Mapamundi | C54: Carte du monde | D54: Mapa del Món | E54: Munduko mapa | F54: Mapa do mundo | G54: Mappa del mondo | H54: Mapa mundial | I54: Weltkarte
A55: File not found | B55: Archivo no encontrado | C55: Fichier introuvable | D55: Arxiu no trobat | E55: Fitxategia ez da aurkitu | F55: Arquivo non atopado | G55: File non trovato | H55: Arquivo não encontrado | I55: Datei nicht gefunden
A56: Do you want to add the city to the map? | B56: ¿Quiere añadir la ciudad al mapa? | C56: Voulez-vous ajouter la ville à la carte ? | D56: Vols afegir la ciutat al mapa? | E56: Hiria mapan gehitu nahi al duzu? | F56: Queres engadir a cidade ao mapa? | G56: Vuoi aggiungere la città alla mappa? | H56: Deseja adicionar a cidade ao mapa? | I56: Möchten Sie die Stadt zur Karte hinzufügen?
A57: Are you sure you want to remove | B57: ¿Estás seguro de que quieres quitar | C57: Êtes-vous sûr de vouloir supprimer | D57: Estàs segura que vols treure | E57: Ziur kendu nahi duzula | F57: Seguro que queres eliminalo | G57: Sei sicuro di voler rimuovere | H57: Você tem certeza que deseja remover | I57: Sind Sie sich sicher, dass Sie das entfernen wollen
A58: Select the city to remove. | B58: Seleccione la ciudad a quitar. | C58: Sélectionnez la ville à supprimer. | D58: Seleccioneu la ciutat a treure. | E58: Hautatu kendu nahi duzun hiria. | F58: Selecciona a cidade que queres eliminar. | G58: Seleziona la città da rimuovere. | H58: Selecione a cidade a ser removida. | I58: Wählen Sie die zu entfernende Stadt aus.
